Date of Transaction,Department,Beneficiary,Amount,Summary of Purpose,Merchant Category
08-Apr-19,Early Education,JS ONLINE GROCERY,91.92,"GROCERY STORES, SUPERMARKETS",GENERAL RETAIL AND WHOLESALE
10-Apr-19,Early Education,AMZNMktplace,69.98,MISCELLANEOUS AND SPECIALTY RETAIL STORES,GENERAL RETAIL AND WHOLESALE
15-Apr-19,Early Education,JS ONLINE GROCERY,93.25,"GROCERY STORES, SUPERMARKETS",GENERAL RETAIL AND WHOLESALE
16-Apr-19,Early Education,AMZNMktplace,6.66,MISCELLANEOUS AND SPECIALTY RETAIL STORES,GENERAL RETAIL AND WHOLESALE
16-Apr-19,Early Education,AMZNMktplace,14.47,MISCELLANEOUS AND SPECIALTY RETAIL STORES,GENERAL RETAIL AND WHOLESALE
17-Apr-19,Early Education,AMZNMktplace,1.72,MISCELLANEOUS AND SPECIALTY RETAIL STORES,GENERAL RETAIL AND WHOLESALE
23-Apr-19,Early Education,JS ONLINE GROCERY,58.41,"GROCERY STORES, SUPERMARKETS",GENERAL RETAIL AND WHOLESALE
08-Apr-19,Planning Apps - Appeals & Enforcement,WWW.CIEEM.NET,590,"CONSULTING, MANAGEMENT, AND PUBLIC RELATIONS SVCS",PROFESSIONAL SERVICES
05-Apr-19,Community Protection,MILK&MORE,7.62,DAIRY PRODUCTS STORES,CATERING AND CATERING SUPPLIES
09-Apr-19,Community Protection,WWW.HIGHFIELDQUALIFICA,114,"SCHOOLS, TRADE AND VOCATIONAL",TRAINING AND EDUCATIONAL
11-Apr-19,Community Protection,WWW.GWR.COM,124,PASSENGER RAILWAYS,TRAVEL
11-Apr-19,Community Protection,MILK&MORE,7.62,DAIRY PRODUCTS STORES,CATERING AND CATERING SUPPLIES
18-Apr-19,Community Protection,MILK&MORE,7.62,DAIRY PRODUCTS STORES,CATERING AND CATERING SUPPLIES
18-Apr-19,Community Protection,LIVERMEAD CLIFF HOTEL,195,"LODGING-HOTELS,MOTELS,RESORTS-NOT CLASSIFIED",HOTELS AND ACCOMMODATION
18-Apr-19,Community Protection,PATIENT DEBT RECOVERY,-159.1,GOVERNMENT SERVICES-NOT ELSEWHERE CLASSIFIED,STATUTORY BODIES
24-Apr-19,Community Protection,WWW.KINGSSEEDS.COM,90.8,DIRECT MARKETING-COMBINATION CATALOG/RETAIL MERCH.,GENERAL RETAIL AND WHOLESALE
24-Apr-19,Community Protection,WWW.RIGBYTAYLOR.COM,205.02,LAWN AND GARDEN SUPPLY STORES,ESTATE AND GARDEN SERVICES
24-Apr-19,Community Protection,WWW.THEGRASSSEEDSTORE.,78.8,AGRICULTURAL COOPERATIVES,ESTATE AND GARDEN SERVICES
24-Apr-19,Community Protection,T&M B2C ECOMM,47.78,MISCELLANEOUS GENERAL MERCHANDISE,GENERAL RETAIL AND WHOLESALE
24-Apr-19,Community Protection,CHARTERED INSTITUTE OF EN,140,"ORGANIZATIONS, CHARITABLE AND SOCIAL SERVICES",CLUBS/ASSOCIATIONS/ORGANISATIONS
25-Apr-19,Community Protection,AMZNMktplace,3.99,MISCELLANEOUS AND SPECIALTY RETAIL STORES,GENERAL RETAIL AND WHOLESALE
25-Apr-19,Community Protection,AMZNMktplace,22.98,MISCELLANEOUS AND SPECIALTY RETAIL STORES,GENERAL RETAIL AND WHOLESALE
25-Apr-19,Community Protection,AMZN MKTP UK*MZ50X4IN4 AM,38.99,BOOK STORES,BOOKS AND PERIODICALS
26-Apr-19,Community Protection,AMZNMktplace,11.64,MISCELLANEOUS AND SPECIALTY RETAIL STORES,GENERAL RETAIL AND WHOLESALE
26-Apr-19,Community Protection,AMZNMktplace,11,MISCELLANEOUS AND SPECIALTY RETAIL STORES,GENERAL RETAIL AND WHOLESALE
26-Apr-19,Community Protection,AMZN Mktp UK*MZ2C25RG4,4.86,BOOK STORES,BOOKS AND PERIODICALS
27-Apr-19,Community Protection,AMZNMktplace,128.24,MISCELLANEOUS AND SPECIALTY RETAIL STORES,GENERAL RETAIL AND WHOLESALE
27-Apr-19,Community Protection,AMZNMktplace,17.95,MISCELLANEOUS AND SPECIALTY RETAIL STORES,GENERAL RETAIL AND WHOLESALE
28-Apr-19,Community Protection,AMZNMktplace,17.95,MISCELLANEOUS AND SPECIALTY RETAIL STORES,GENERAL RETAIL AND WHOLESALE
28-Apr-19,Community Protection,AMZNMktplace,86.48,MISCELLANEOUS AND SPECIALTY RETAIL STORES,GENERAL RETAIL AND WHOLESALE
28-Apr-19,Community Protection,MILK&MORE,7.62,DAIRY PRODUCTS STORES,CATERING AND CATERING SUPPLIES
28-Apr-19,Community Protection,AMZN Mktp UK*MZ18M2YQ4,15.95,BOOK STORES,BOOKS AND PERIODICALS
29-Apr-19,Community Protection,AMZN MKTP UK*MN1G46CE4 AM,19.49,BOOK STORES,BOOKS AND PERIODICALS
30-Apr-19,Community Protection,AMZNMktplace,6.95,MISCELLANEOUS AND SPECIALTY RETAIL STORES,GENERAL RETAIL AND WHOLESALE
30-Apr-19,Community Protection,WWW.EXETER-AIRPORT.CO.,39.2,"AIRPORTS, AIRPORT TERMINALS, FLYING FIELDS",TRAVEL
30-Apr-19,Community Protection,WWW.GWR.COM,158.5,PASSENGER RAILWAYS,TRAVEL
02-May-19,Community Protection,WEBPAYMENTS BRISTOL,180,"COLLEGES, UNIV, PRO SCHOOLS, JUNIOR COLLEGES",TRAINING AND EDUCATIONAL
02-May-19,Community Protection,MILK&MORE,7.62,DAIRY PRODUCTS STORES,CATERING AND CATERING SUPPLIES
03-May-19,Community Protection,CHARTERED INSTITUTE OF EN,"1,180.00","ORGANIZATIONS, CHARITABLE AND SOCIAL SERVICES",CLUBS/ASSOCIATIONS/ORGANISATIONS
03-May-19,Community Protection,WEBPAYMENTS BRISTOL,180,"COLLEGES, UNIV, PRO SCHOOLS, JUNIOR COLLEGES",TRAINING AND EDUCATIONAL
29-Apr-19,Business Services,WWW.TORBAYSEASCHOOL.CO,120,SCHOOLS AND  EDUCATIONAL SVC-NOT ELSEWHERE CLASSIFIED,TRAINING AND EDUCATIONAL
30-Apr-19,Business Services,DLR,4.9,PASSENGER RAILWAYS,TRAVEL
30-Apr-19,Business Services,LUL TICKET MACHINE,4.9,PASSENGER RAILWAYS,TRAVEL
02-May-19,Business Services,TORBAY BUSINESS FORUM,12.5,"ORGANIZATIONS, MEMBERSHIP-NOT ELSEWHERE CLASSIFIED",CLUBS/ASSOCIATIONS/ORGANISATIONS
03-May-19,Print & Post Room,WWW.SPEEDLINKTC.COM,437.41,RAILROADS - FREIGHT,FREIGHT AND STORAGE
15-Apr-19,Legal Services,POST OFFICE COUNTER,6.6,POSTAL SERVICES-GOVERNMENT ONLY,MAIL AND COURIER SERVICES
16-Apr-19,Legal Services,TORBAY&SOUTH DEVON NHS,300,"HEALTH PRACTITIONERS, MEDICAL SRVCS-NOT ELSEWHERE",MEDICAL SUPPLIES AND SERVICES
16-Apr-19,Legal Services,JS ONLINE GROCERY,57.15,"GROCERY STORES, SUPERMARKETS",GENERAL RETAIL AND WHOLESALE
17-Apr-19,Legal Services,WWW.GOV.UK,20,PROFESSIONAL SERVICES-NOT ELSEWHERE CLASSIFIED,PROFESSIONAL SERVICES
18-Apr-19,Legal Services,POST OFFICE COUNTER,6.6,POSTAL SERVICES-GOVERNMENT ONLY,MAIL AND COURIER SERVICES
30-Apr-19,Legal Services,WWW.ROP.CO.UK,81.58,"OFFICE, SCHOOL SUPPLY, AND STATIONERY STORES",OFFICE STATIONERY EQUIPMENT AND SUPPLIES
01-May-19,Legal Services,WWW.GWR.COM,74.8,PASSENGER RAILWAYS,TRAVEL
02-May-19,Legal Services,RICHARDS TV LTD,10.99,HOUSEHOLD APPLIANCE STORES,GENERAL RETAIL AND WHOLESALE
03-May-19,Legal Services,CELLMARK,159.6,"HEALTH PRACTITIONERS, MEDICAL SRVCS-NOT ELSEWHERE",MEDICAL SUPPLIES AND SERVICES
16-Apr-19,"Financial Services inc Debtors Creditors and internal audit
 ",GENERAL REGISTER OFFIC,20,BUSINESS SERVICES-NOT ELSEWHERE CLASSIFIED,MISCELLANEOUS INDUSTRIAL/COMMERCIAL SUPPLIES
16-Apr-19,"Financial Services inc Debtors Creditors and internal audit
 ",GEN REGISTER OFFICE,38,GOVERNMENT SERVICES-NOT ELSEWHERE CLASSIFIED,STATUTORY BODIES
16-Apr-19,"Financial Services inc Debtors Creditors and internal audit
 ",WREXHAM CBC INTERN,862.12,GOVERNMENT SERVICES-NOT ELSEWHERE CLASSIFIED,STATUTORY BODIES
16-Apr-19,"Financial Services inc Debtors Creditors and internal audit
 ",TVLICENSING.CO.UK,154.5,"CONSULTING, MANAGEMENT, AND PUBLIC RELATIONS SVCS",PROFESSIONAL SERVICES
16-Apr-19,"Financial Services inc Debtors Creditors and internal audit
 ",TVLICENSING.CO.UK,154.5,"CONSULTING, MANAGEMENT, AND PUBLIC RELATIONS SVCS",PROFESSIONAL SERVICES
17-Apr-19,"Financial Services inc Debtors Creditors and internal audit
 ",WWW.WESSEXWATER.CO,238.88,"UTLTS-ELCTRC, GAS, HEATING OIL, SANITARY, WATER",UTILITIES AND NON AUTOMOTIVE FUEL
17-Apr-19,"Financial Services inc Debtors Creditors and internal audit
 ",WORCESTERSHIRE COU,35,GOVERNMENT SERVICES-NOT ELSEWHERE CLASSIFIED,STATUTORY BODIES
17-Apr-19,"Financial Services inc Debtors Creditors and internal audit
 ",PAYZIP,16,"CONSULTING, MANAGEMENT, AND PUBLIC RELATIONS SVCS",PROFESSIONAL SERVICES
16-Apr-19,"Financial Services inc Debtors Creditors and internal audit
 ",GEN REGISTER OFFICE,-31.5,GOVERNMENT SERVICES-NOT ELSEWHERE CLASSIFIED,STATUTORY BODIES
20-Apr-19,"Financial Services inc Debtors Creditors and internal audit
 ",THE BAHAMAS,141,"LODGING-HOTELS,MOTELS,RESORTS-NOT CLASSIFIED",HOTELS AND ACCOMMODATION
23-Apr-19,"Financial Services inc Debtors Creditors and internal audit
 ",MARKS&SPENCER PLC,75,"GROCERY STORES, SUPERMARKETS",GENERAL RETAIL AND WHOLESALE
24-Apr-19,"Financial Services inc Debtors Creditors and internal audit
 ",TORBAY COUNCIL - WEB,11,GOVERNMENT SERVICES-NOT ELSEWHERE CLASSIFIED,STATUTORY BODIES
24-Apr-19,"Financial Services inc Debtors Creditors and internal audit
 ",TRAVELODGE GB0000,128,TRAVELODGE,HOTELS AND ACCOMMODATION
24-Apr-19,"Financial Services inc Debtors Creditors and internal audit
 ",TVLICENSING.CO.UK,154.5,"CONSULTING, MANAGEMENT, AND PUBLIC RELATIONS SVCS",PROFESSIONAL SERVICES
25-Apr-19,"Financial Services inc Debtors Creditors and internal audit
 ",TORBAY COUNCIL - WEB,22,GOVERNMENT SERVICES-NOT ELSEWHERE CLASSIFIED,STATUTORY BODIES
25-Apr-19,"Financial Services inc Debtors Creditors and internal audit
 ",ARGOS RETAIL GROUP,189.99,DISCOUNT STORES,GENERAL RETAIL AND WHOLESALE
03-May-19,"Financial Services inc Debtors Creditors and internal audit
 ",TRAVELODGE GB0000,183,TRAVELODGE,HOTELS AND ACCOMMODATION
03-May-19,"Financial Services inc Debtors Creditors and internal audit
 ",WWW.ARGOS.CO.UK,43.95,DISCOUNT STORES,GENERAL RETAIL AND WHOLESALE
03-May-19,"Financial Services inc Debtors Creditors and internal audit
 ",ARGOS RETAIL GROUP,17.99,DISCOUNT STORES,GENERAL RETAIL AND WHOLESALE
03-May-19,"Financial Services inc Debtors Creditors and internal audit
 ",PREMIER INN 44536515,129,PREMIER TRAVEL INN,HOTELS AND ACCOMMODATION
03-May-19,"Financial Services inc Debtors Creditors and internal audit
 ",PREMIER INN 44536515,-129,PREMIER TRAVEL INN,HOTELS AND ACCOMMODATION
18-Apr-19,Local Transport Plan - strategic transport,WWW.GWR.COM,47,PASSENGER RAILWAYS,TRAVEL
23-Apr-19,Local Transport Plan - strategic transport,WWW.GWR.COM,98.8,PASSENGER RAILWAYS,TRAVEL
24-Apr-19,Local Transport Plan - strategic transport,TRAINLINE,279.88,PASSENGER RAILWAYS,TRAVEL
11-Apr-19,ICT Training,AMZNMktplace,109.99,MISCELLANEOUS AND SPECIALTY RETAIL STORES,GENERAL RETAIL AND WHOLESALE
28-Apr-19,ICT Training,Amazon.co.uk*MZ2UP5YA4,5.99,DIRECT MARKETING-OTHER DIRECT MARKETERS/NOT ELSEW.,MAIL ORDER / DIRECT SELLING
02-May-19,ICT Training,WWW.BACKCS.CO.UK,60,DENTAL/LAB/MED/OPHTHALMIC HOSP EQUIP AND  SUPPLIES,MEDICAL SUPPLIES AND SERVICES
23-Apr-19,TORBAY COUNCIL,WWW.GWR.COM,48.9,PASSENGER RAILWAYS,TRAVEL
21-Apr-19,"Community & Customer Services
",One.com,76.64,COMPUTER NETWORK/INFORMATION SERVICES,MISCELLANEOUS
25-Apr-19,"Community & Customer Services
",1&1 INTERNET LIMITED,7.19,COMPUTER NETWORK/INFORMATION SERVICES,MISCELLANEOUS
30-Apr-19,"Community & Customer Services
",WWW.GWR.COM,48.9,PASSENGER RAILWAYS,TRAVEL
04-Apr-19,"Community & Customer Services
",FLYBE.COM   O69R7M,116.47,"AIR CARRIERS, AIRLINES-NOT ELSEWHERE CLASSIFIED",TRAVEL
10-Apr-19,"Community & Customer Services
",AMZNMktplace,35.99,MISCELLANEOUS AND SPECIALTY RETAIL STORES,GENERAL RETAIL AND WHOLESALE
12-Apr-19,"Community & Customer Services
",KEY,742.8,"OFFICE, SCHOOL SUPPLY, AND STATIONERY STORES",OFFICE STATIONERY EQUIPMENT AND SUPPLIES
12-Apr-19,"Community & Customer Services
",AMAZON.CO.UK*MZ4O42584 AM,59.7,MISCELLANEOUS AND SPECIALTY RETAIL STORES,GENERAL RETAIL AND WHOLESALE
14-Apr-19,"Community & Customer Services
",AMZNMktplace,157.75,MISCELLANEOUS AND SPECIALTY RETAIL STORES,GENERAL RETAIL AND WHOLESALE
18-Apr-19,"Community & Customer Services
",DMARC ANALYZER,9.11,COMPUTER SOFTWARE STORES,COMPUTER EQUIPMENT & SERVICES
24-Apr-19,"Community & Customer Services
",WWW.GWR.COM,129,PASSENGER RAILWAYS,TRAVEL
02-May-19,"Community & Customer Services
",AMZNMktplace,87.92,MISCELLANEOUS AND SPECIALTY RETAIL STORES,GENERAL RETAIL AND WHOLESALE
03-May-19,"Community & Customer Services
",MSFT * E080088726,4.5,"COMPUTERS, COMPUTER PERIPHERAL EQUIPMENT, SOFTWARE",COMPUTER EQUIPMENT & SERVICES
03-May-19,"Community & Customer Services
",MSFT * E010083R37,4.5,"COMPUTERS, COMPUTER PERIPHERAL EQUIPMENT, SOFTWARE",COMPUTER EQUIPMENT & SERVICES
05-Apr-19,Financial Services inc Debtors Creditors and internal audit,Amazon.co.uk*MZ7K510Q4,67.83,DIRECT MARKETING-OTHER DIRECT MARKETERS/NOT ELSEW.,MAIL ORDER / DIRECT SELLING
06-Apr-19,Financial Services inc Debtors Creditors and internal audit,Amazon.co.uk*MZ6QU21T4,62.91,DIRECT MARKETING-OTHER DIRECT MARKETERS/NOT ELSEW.,MAIL ORDER / DIRECT SELLING
08-Apr-19,Financial Services inc Debtors Creditors and internal audit,AMZNMKTPLACE AMAZON.CO.UK,31.21,MISCELLANEOUS AND SPECIALTY RETAIL STORES,GENERAL RETAIL AND WHOLESALE
08-Apr-19,Financial Services inc Debtors Creditors and internal audit,ARGOS RETAIL GROUP,76,DISCOUNT STORES,GENERAL RETAIL AND WHOLESALE
08-Apr-19,Financial Services inc Debtors Creditors and internal audit,Amazon.co.uk*MZ2BJ9GY4,500,DIRECT MARKETING-OTHER DIRECT MARKETERS/NOT ELSEW.,MAIL ORDER / DIRECT SELLING
08-Apr-19,Financial Services inc Debtors Creditors and internal audit,Amazon.co.uk*MZ7CI9G14,500,DIRECT MARKETING-OTHER DIRECT MARKETERS/NOT ELSEW.,MAIL ORDER / DIRECT SELLING
08-Apr-19,Financial Services inc Debtors Creditors and internal audit,Amazon.co.uk*MZ2CX0GY4,500,DIRECT MARKETING-OTHER DIRECT MARKETERS/NOT ELSEW.,MAIL ORDER / DIRECT SELLING
08-Apr-19,Financial Services inc Debtors Creditors and internal audit,Amazon.co.uk*MZ3C71G24,500,DIRECT MARKETING-OTHER DIRECT MARKETERS/NOT ELSEW.,MAIL ORDER / DIRECT SELLING
09-Apr-19,Financial Services inc Debtors Creditors and internal audit,AMZNMKTPLACE AMAZON.CO.UK,99,MISCELLANEOUS AND SPECIALTY RETAIL STORES,GENERAL RETAIL AND WHOLESALE
09-Apr-19,Financial Services inc Debtors Creditors and internal audit,AMZNMKTPLACE AMAZON.CO.UK,33.93,MISCELLANEOUS AND SPECIALTY RETAIL STORES,GENERAL RETAIL AND WHOLESALE
09-Apr-19,Financial Services inc Debtors Creditors and internal audit,AMZN Mktp UK*MZ7LT9XN4,29.97,BOOK STORES,BOOKS AND PERIODICALS
11-Apr-19,Financial Services inc Debtors Creditors and internal audit,AMZNMKTPLACE AMAZON.CO.UK,51.74,MISCELLANEOUS AND SPECIALTY RETAIL STORES,GENERAL RETAIL AND WHOLESALE
11-Apr-19,Financial Services inc Debtors Creditors and internal audit,AMZNMKTPLACE AMAZON.CO.UK,33.93,MISCELLANEOUS AND SPECIALTY RETAIL STORES,GENERAL RETAIL AND WHOLESALE
12-Apr-19,Financial Services inc Debtors Creditors and internal audit,TRAINLINE,8.05,PASSENGER RAILWAYS,TRAVEL
12-Apr-19,Financial Services inc Debtors Creditors and internal audit,WWW.CREALY.CO.UK,60,"AMUSEMENT PARKS,CARNIVALS,CIRCUS,FORTUNE TELLERS",LEISURE ACTIVITIES
12-Apr-19,Financial Services inc Debtors Creditors and internal audit,TRAVELODGE GB0000,67,TRAVELODGE,HOTELS AND ACCOMMODATION
15-Apr-19,Financial Services inc Debtors Creditors and internal audit,TRAINLINE,139.25,PASSENGER RAILWAYS,TRAVEL
15-Apr-19,Financial Services inc Debtors Creditors and internal audit,TRAINLINE,8.05,PASSENGER RAILWAYS,TRAVEL
15-Apr-19,Financial Services inc Debtors Creditors and internal audit,WWW.ARGOS.CO.UK,185.95,DISCOUNT STORES,GENERAL RETAIL AND WHOLESALE
15-Apr-19,Financial Services inc Debtors Creditors and internal audit,WWW.ARGOS.CO.UK,176.99,DISCOUNT STORES,GENERAL RETAIL AND WHOLESALE
16-Apr-19,Financial Services inc Debtors Creditors and internal audit,SPECSAVERS 00068000TOR,129,"OPTICIANS,OPTICAL GOODS AND  EYEGLASSES",MEDICAL SUPPLIES AND SERVICES
15-Apr-19,Financial Services inc Debtors Creditors and internal audit,PREMIER INN44014075,209.98,PREMIER TRAVEL INN,HOTELS AND ACCOMMODATION
16-Apr-19,Financial Services inc Debtors Creditors and internal audit,SOUTH WEST WATER LTD,88.51,PROFESSIONAL SERVICES-NOT ELSEWHERE CLASSIFIED,PROFESSIONAL SERVICES
16-Apr-19,Financial Services inc Debtors Creditors and internal audit,WWW.MANCHESTER.GOV.UK,11,AUTOMOBILE PARKING LOTS AND GARAGES,TRAVEL
16-Apr-19,Financial Services inc Debtors Creditors and internal audit,ARGOS RETAIL GROUP,58,DISCOUNT STORES,GENERAL RETAIL AND WHOLESALE
16-Apr-19,Financial Services inc Debtors Creditors and internal audit,ARGOS RETAIL GROUP,29,DISCOUNT STORES,GENERAL RETAIL AND WHOLESALE
16-Apr-19,Financial Services inc Debtors Creditors and internal audit,WWW.ARGOS.CO.UK,53.94,DISCOUNT STORES,GENERAL RETAIL AND WHOLESALE
16-Apr-19,Financial Services inc Debtors Creditors and internal audit,WWW.ARGOS.CO.UK,119,DISCOUNT STORES,GENERAL RETAIL AND WHOLESALE
16-Apr-19,Financial Services inc Debtors Creditors and internal audit,WWW.ARGOS.CO.UK,155.95,DISCOUNT STORES,GENERAL RETAIL AND WHOLESALE
16-Apr-19,Financial Services inc Debtors Creditors and internal audit,ARGOS RETAIL GROUP,-25,DISCOUNT STORES,GENERAL RETAIL AND WHOLESALE
18-Apr-19,Financial Services inc Debtors Creditors and internal audit,TRAINLINE,184,PASSENGER RAILWAYS,TRAVEL
18-Apr-19,Financial Services inc Debtors Creditors and internal audit,TRAINLINE,50.9,PASSENGER RAILWAYS,TRAVEL
18-Apr-19,Financial Services inc Debtors Creditors and internal audit,WWW.THEINNATWOODHALLSP,71,"LODGING-HOTELS,MOTELS,RESORTS-NOT CLASSIFIED",HOTELS AND ACCOMMODATION
18-Apr-19,Financial Services inc Debtors Creditors and internal audit,ARGOS RETAIL GROUP,79.99,DISCOUNT STORES,GENERAL RETAIL AND WHOLESALE
18-Apr-19,Financial Services inc Debtors Creditors and internal audit,ARGOS RETAIL GROUP,14.99,DISCOUNT STORES,GENERAL RETAIL AND WHOLESALE
18-Apr-19,Financial Services inc Debtors Creditors and internal audit,MANCHESTER CITY COUNCI,-11,AUTOMOBILE PARKING LOTS AND GARAGES,TRAVEL
23-Apr-19,Financial Services inc Debtors Creditors and internal audit,HM PASSPORT OFFICE,75.5,GOVERNMENT SERVICES-NOT ELSEWHERE CLASSIFIED,STATUTORY BODIES
23-Apr-19,Financial Services inc Debtors Creditors and internal audit,TRAINLINE,274.1,PASSENGER RAILWAYS,TRAVEL
23-Apr-19,Financial Services inc Debtors Creditors and internal audit,WWW.ARGOS.CO.UK,85.23,DISCOUNT STORES,GENERAL RETAIL AND WHOLESALE
23-Apr-19,Financial Services inc Debtors Creditors and internal audit,PREMIER INN44019130,190,PREMIER TRAVEL INN,HOTELS AND ACCOMMODATION
23-Apr-19,Financial Services inc Debtors Creditors and internal audit,PREMIER INN44533980,223,"EATING PLACES, RESTAURANTS",RESTAURANTS AND BARS
23-Apr-19,Financial Services inc Debtors Creditors and internal audit,PREMIER INN 44536035,71,PREMIER TRAVEL INN,HOTELS AND ACCOMMODATION
23-Apr-19,Financial Services inc Debtors Creditors and internal audit,FLYBE.COM   PG6Y5S,235.07,"AIR CARRIERS, AIRLINES-NOT ELSEWHERE CLASSIFIED",TRAVEL
23-Apr-19,Financial Services inc Debtors Creditors and internal audit,FLYBE.COM   PROBX8,267.07,"AIR CARRIERS, AIRLINES-NOT ELSEWHERE CLASSIFIED",TRAVEL
24-Apr-19,Financial Services inc Debtors Creditors and internal audit,WWW.ARGOS.CO.UK,-3.95,DISCOUNT STORES,GENERAL RETAIL AND WHOLESALE
24-Apr-19,Financial Services inc Debtors Creditors and internal audit,WWW.ARGOS.CO.UK,-81.28,DISCOUNT STORES,GENERAL RETAIL AND WHOLESALE
25-Apr-19,Financial Services inc Debtors Creditors and internal audit,TRAINLINE,120,PASSENGER RAILWAYS,TRAVEL
24-Apr-19,Financial Services inc Debtors Creditors and internal audit,PREMIER INN44521665,61,PREMIER TRAVEL INN,HOTELS AND ACCOMMODATION
25-Apr-19,Financial Services inc Debtors Creditors and internal audit,GEN REGISTER OFFICE,14,GOVERNMENT SERVICES-NOT ELSEWHERE CLASSIFIED,STATUTORY BODIES
29-Apr-19,Financial Services inc Debtors Creditors and internal audit,PREMIER INN44010470,72,PREMIER TRAVEL INN,HOTELS AND ACCOMMODATION
29-Apr-19,Financial Services inc Debtors Creditors and internal audit,PREMIER INN44013440,83,PREMIER TRAVEL INN,HOTELS AND ACCOMMODATION
29-Apr-19,Financial Services inc Debtors Creditors and internal audit,PREMIER INN44027510,69,PREMIER TRAVEL INN,HOTELS AND ACCOMMODATION
30-Apr-19,Financial Services inc Debtors Creditors and internal audit,EVIIVO:THE ELMER,60,"LODGING-HOTELS,MOTELS,RESORTS-NOT CLASSIFIED",HOTELS AND ACCOMMODATION
30-Apr-19,Financial Services inc Debtors Creditors and internal audit,TORBAY COUNCIL - WEB,22,GOVERNMENT SERVICES-NOT ELSEWHERE CLASSIFIED,STATUTORY BODIES
30-Apr-19,Financial Services inc Debtors Creditors and internal audit,WWW.ARGOS.CO.UK,317.94,DISCOUNT STORES,GENERAL RETAIL AND WHOLESALE
29-Apr-19,Financial Services inc Debtors Creditors and internal audit,FLYBE.COM   UJIUNG,144.41,"AIR CARRIERS, AIRLINES-NOT ELSEWHERE CLASSIFIED",TRAVEL
01-May-19,Financial Services inc Debtors Creditors and internal audit,TRAINLINE,6.45,PASSENGER RAILWAYS,TRAVEL
01-May-19,Financial Services inc Debtors Creditors and internal audit,FLYBE       LZKB84,152.13,"AIR CARRIERS, AIRLINES-NOT ELSEWHERE CLASSIFIED",TRAVEL
03-May-19,Financial Services inc Debtors Creditors and internal audit,TRAINLINE,6.35,PASSENGER RAILWAYS,TRAVEL
03-May-19,Financial Services inc Debtors Creditors and internal audit,TRAINLINE,310.5,PASSENGER RAILWAYS,TRAVEL
03-May-19,Financial Services inc Debtors Creditors and internal audit,PREMIER INN 44536515,129,PREMIER TRAVEL INN,HOTELS AND ACCOMMODATION
03-May-19,Financial Services inc Debtors Creditors and internal audit,FLYBE.COM   SDL8F3,69.31,"AIR CARRIERS, AIRLINES-NOT ELSEWHERE CLASSIFIED",TRAVEL
05-May-19,Financial Services inc Debtors Creditors and internal audit,PREMIER INN44019130,-38,PREMIER TRAVEL INN,HOTELS AND ACCOMMODATION
17-Apr-19,Financial Services - Children,LEWISHAM COUNCIL INT,11,GOVERNMENT SERVICES-NOT ELSEWHERE CLASSIFIED,STATUTORY BODIES
17-Apr-19,Financial Services - Children,WWW.ARGOS.CO.UK,499.97,DISCOUNT STORES,GENERAL RETAIL AND WHOLESALE
17-Apr-19,Financial Services - Children,WWW.ARGOS.CO.UK,295.88,DISCOUNT STORES,GENERAL RETAIL AND WHOLESALE
17-Apr-19,Financial Services - Children,TORBAY COUNCIL - WEB,22,GOVERNMENT SERVICES-NOT ELSEWHERE CLASSIFIED,STATUTORY BODIES
24-Apr-19,Financial Services - Children,WWW.ARGOS.CO.UK,-291.93,DISCOUNT STORES,GENERAL RETAIL AND WHOLESALE
24-Apr-19,Financial Services - Children,WWW.ARGOS.CO.UK,-3.95,DISCOUNT STORES,GENERAL RETAIL AND WHOLESALE
25-Apr-19,Financial Services - Children,ARGOS DIRECT,293.9,DISCOUNT STORES,GENERAL RETAIL AND WHOLESALE
29-Apr-19,Financial Services - Children,LB CROYDON,13,GOVERNMENT SERVICES-NOT ELSEWHERE CLASSIFIED,STATUTORY BODIES
29-Apr-19,Financial Services - Children,TORBAY COUNCIL - WEB,11,GOVERNMENT SERVICES-NOT ELSEWHERE CLASSIFIED,STATUTORY BODIES
01-May-19,Financial Services - Children,TORFAEN C B C,11,GOVERNMENT SERVICES-NOT ELSEWHERE CLASSIFIED,STATUTORY BODIES
02-May-19,Financial Services - Children,AMFBOWLING.CO.UK,10.98,"CLUBS-CNTRY,MBRSHIP(ATHLET,REC,SPRTS,PRIVATE GOLF",LEISURE ACTIVITIES
02-May-19,Financial Services - Children,PREMIER INN44521710,73,PREMIER TRAVEL INN,HOTELS AND ACCOMMODATION
05-Apr-19,TDA,WWW.ACTIVATEEVENTS.COM,"1,068.00",BUSINESS SERVICES-NOT ELSEWHERE CLASSIFIED,MISCELLANEOUS INDUSTRIAL/COMMERCIAL SUPPLIES
26-Apr-19,TDA,RIBA SERVICES,157.5,BOOK STORES,BOOKS AND PERIODICALS
02-May-19,TDA,WWW.PLANNINGPORTAL.CO.,254,BUSINESS SERVICES-NOT ELSEWHERE CLASSIFIED,MISCELLANEOUS INDUSTRIAL/COMMERCIAL SUPPLIES
11-Apr-19,"Community & Customer Services
",WP-JOBLADDER LTD,360,"EMPLOYMENT AGENCIES, TEMPORARY HELP SERVICES",STAFF - TEMPORARY RECRUITMENT
14-Apr-19,"Community & Customer Services
",FACEBK AQQTZK2WD2,17,ADVERTISING SERVICES,PRINT AND ADVERTISING
18-Apr-19,"Community & Customer Services
",FACEBK W9R89K6VD2,17,ADVERTISING SERVICES,PRINT AND ADVERTISING
24-Apr-19,"Community & Customer Services
",WAITROSE 485,70.53,"GROCERY STORES, SUPERMARKETS",GENERAL RETAIL AND WHOLESALE
02-May-19,"Community & Customer Services
",VIRGIN MEDIA PYMTS,70.37,TELECOM INCL PREPAID/RECURRING PHONE SVCS,TELECOMMUNICATION SERVICES
04-Apr-19,Housing Options,TRECARN HOTEL,179,"LODGING-HOTELS,MOTELS,RESORTS-NOT CLASSIFIED",HOTELS AND ACCOMMODATION
04-Apr-19,Housing Options,TRECARN HOTEL,212,"LODGING-HOTELS,MOTELS,RESORTS-NOT CLASSIFIED",HOTELS AND ACCOMMODATION
04-Apr-19,Housing Options,TRECARN HOTEL,212,"LODGING-HOTELS,MOTELS,RESORTS-NOT CLASSIFIED",HOTELS AND ACCOMMODATION
05-Apr-19,Housing Options,TRECARN HOTEL,83,"LODGING-HOTELS,MOTELS,RESORTS-NOT CLASSIFIED",HOTELS AND ACCOMMODATION
05-Apr-19,Housing Options,TRECARN HOTEL,83,"LODGING-HOTELS,MOTELS,RESORTS-NOT CLASSIFIED",HOTELS AND ACCOMMODATION
08-Apr-19,Housing Options,WW.LADYSMILE.CO.UK,5.82,"LODGING-HOTELS,MOTELS,RESORTS-NOT CLASSIFIED",HOTELS AND ACCOMMODATION
08-Apr-19,Housing Options,WW.LADYSMILE.CO.UK,"1,000.00","LODGING-HOTELS,MOTELS,RESORTS-NOT CLASSIFIED",HOTELS AND ACCOMMODATION
08-Apr-19,Housing Options,WW.LADYSMILE.CO.UK,"1,000.00","LODGING-HOTELS,MOTELS,RESORTS-NOT CLASSIFIED",HOTELS AND ACCOMMODATION
08-Apr-19,Housing Options,WW.LADYSMILE.CO.UK,"1,000.00","LODGING-HOTELS,MOTELS,RESORTS-NOT CLASSIFIED",HOTELS AND ACCOMMODATION
08-Apr-19,Housing Options,WW.LADYSMILE.CO.UK,5.82,"LODGING-HOTELS,MOTELS,RESORTS-NOT CLASSIFIED",HOTELS AND ACCOMMODATION
08-Apr-19,Housing Options,WW.LADYSMILE.CO.UK,6,"LODGING-HOTELS,MOTELS,RESORTS-NOT CLASSIFIED",HOTELS AND ACCOMMODATION
08-Apr-19,Housing Options,TRAVELODGE GB0000,40,TRAVELODGE,HOTELS AND ACCOMMODATION
08-Apr-19,Housing Options,TRECARN HOTEL,90,"LODGING-HOTELS,MOTELS,RESORTS-NOT CLASSIFIED",HOTELS AND ACCOMMODATION
09-Apr-19,Housing Options,NATIONAL EXPRESS LIMITED,37.2,BUS LINES,TRAVEL
10-Apr-19,Housing Options,TRAVELODGE GB0000,375.5,TRAVELODGE,HOTELS AND ACCOMMODATION
10-Apr-19,Housing Options,NATIONAL EXPRESS LIMITED,43.8,BUS LINES,TRAVEL
11-Apr-19,Housing Options,TRECARN HOTEL,118,"LODGING-HOTELS,MOTELS,RESORTS-NOT CLASSIFIED",HOTELS AND ACCOMMODATION
11-Apr-19,Housing Options,TRECARN HOTEL,138,"LODGING-HOTELS,MOTELS,RESORTS-NOT CLASSIFIED",HOTELS AND ACCOMMODATION
11-Apr-19,Housing Options,TRECARN HOTEL,249,"LODGING-HOTELS,MOTELS,RESORTS-NOT CLASSIFIED",HOTELS AND ACCOMMODATION
11-Apr-19,Housing Options,TRECARN HOTEL,30,"LODGING-HOTELS,MOTELS,RESORTS-NOT CLASSIFIED",HOTELS AND ACCOMMODATION
12-Apr-19,Housing Options,TRECARN HOTEL,88,"LODGING-HOTELS,MOTELS,RESORTS-NOT CLASSIFIED",HOTELS AND ACCOMMODATION
13-Apr-19,Housing Options,TRECARN HOTEL,88,"LODGING-HOTELS,MOTELS,RESORTS-NOT CLASSIFIED",HOTELS AND ACCOMMODATION
16-Apr-19,Housing Options,TRAINLINE,388.8,PASSENGER RAILWAYS,TRAVEL
15-Apr-19,Housing Options,TRECARN HOTEL,296,"LODGING-HOTELS,MOTELS,RESORTS-NOT CLASSIFIED",HOTELS AND ACCOMMODATION
15-Apr-19,Housing Options,TRECARN HOTEL,336,"LODGING-HOTELS,MOTELS,RESORTS-NOT CLASSIFIED",HOTELS AND ACCOMMODATION
15-Apr-19,Housing Options,TRECARN HOTEL,296,"LODGING-HOTELS,MOTELS,RESORTS-NOT CLASSIFIED",HOTELS AND ACCOMMODATION
17-Apr-19,Housing Options,TRAVELODGE GB0000,164,TRAVELODGE,HOTELS AND ACCOMMODATION
18-Apr-19,Housing Options,HOLIDAY PAYMENT VRUK,589,TRAVEL AGENCIES AND TOUR OPERATORS,TRAVEL
23-Apr-19,Housing Options,TRAVELODGE GB0000,398,TRAVELODGE,HOTELS AND ACCOMMODATION
24-Apr-19,Housing Options,WW.LADYSMILE.CO.UK,891.78,"LODGING-HOTELS,MOTELS,RESORTS-NOT CLASSIFIED",HOTELS AND ACCOMMODATION
24-Apr-19,Housing Options,WW.LADYSMILE.CO.UK,891.78,"LODGING-HOTELS,MOTELS,RESORTS-NOT CLASSIFIED",HOTELS AND ACCOMMODATION
24-Apr-19,Housing Options,WW.LADYSMILE.CO.UK,891.78,"LODGING-HOTELS,MOTELS,RESORTS-NOT CLASSIFIED",HOTELS AND ACCOMMODATION
24-Apr-19,Housing Options,TRAVELODGE GB0000,215,TRAVELODGE,HOTELS AND ACCOMMODATION
23-Apr-19,Housing Options,TRECARN HOTEL,267,"LODGING-HOTELS,MOTELS,RESORTS-NOT CLASSIFIED",HOTELS AND ACCOMMODATION
23-Apr-19,Housing Options,TRECARN HOTEL,232,"LODGING-HOTELS,MOTELS,RESORTS-NOT CLASSIFIED",HOTELS AND ACCOMMODATION
23-Apr-19,Housing Options,TRECARN HOTEL,232,"LODGING-HOTELS,MOTELS,RESORTS-NOT CLASSIFIED",HOTELS AND ACCOMMODATION
23-Apr-19,Housing Options,TRECARN HOTEL,232,"LODGING-HOTELS,MOTELS,RESORTS-NOT CLASSIFIED",HOTELS AND ACCOMMODATION
25-Apr-19,Housing Options,HOLIDAY PAYMENT VRUK,522,TRAVEL AGENCIES AND TOUR OPERATORS,TRAVEL
25-Apr-19,Housing Options,TRAVELODGE GB0000,235,TRAVELODGE,HOTELS AND ACCOMMODATION
24-Apr-19,Housing Options,TRECARN HOTEL,176,"LODGING-HOTELS,MOTELS,RESORTS-NOT CLASSIFIED",HOTELS AND ACCOMMODATION
26-Apr-19,Housing Options,TRAVELODGE GB0000,207,TRAVELODGE,HOTELS AND ACCOMMODATION
25-Apr-19,Housing Options,TRECARN HOTEL,143,"LODGING-HOTELS,MOTELS,RESORTS-NOT CLASSIFIED",HOTELS AND ACCOMMODATION
27-Apr-19,Housing Options,NATIONAL EXPRESS LIMITED,55.6,BUS LINES,TRAVEL
29-Apr-19,Housing Options,TRAVELODGE GB0000,392,TRAVELODGE,HOTELS AND ACCOMMODATION
29-Apr-19,Housing Options,TRAVELODGE GB0000,115,TRAVELODGE,HOTELS AND ACCOMMODATION
30-Apr-19,Housing Options,TRAVELODGE GB0000,92,TRAVELODGE,HOTELS AND ACCOMMODATION
29-Apr-19,Housing Options,TRECARN HOTEL,272,"LODGING-HOTELS,MOTELS,RESORTS-NOT CLASSIFIED",HOTELS AND ACCOMMODATION
30-Apr-19,Housing Options,HOLIDAY PAYMENT VRUK,543,TRAVEL AGENCIES AND TOUR OPERATORS,TRAVEL
30-Apr-19,Housing Options,HOLIDAY PAYMENT VRUK,543,TRAVEL AGENCIES AND TOUR OPERATORS,TRAVEL
30-Apr-19,Housing Options,TRECARN HOTEL,235,"LODGING-HOTELS,MOTELS,RESORTS-NOT CLASSIFIED",HOTELS AND ACCOMMODATION
30-Apr-19,Housing Options,TRECARN HOTEL,235,"LODGING-HOTELS,MOTELS,RESORTS-NOT CLASSIFIED",HOTELS AND ACCOMMODATION
02-May-19,Housing Options,WW.LADYSMILE.CO.UK,383.55,"LODGING-HOTELS,MOTELS,RESORTS-NOT CLASSIFIED",HOTELS AND ACCOMMODATION
02-May-19,Housing Options,TRAVELODGE GB0000,302,TRAVELODGE,HOTELS AND ACCOMMODATION
04-Apr-19,Financial Services - Children,PREMIER INN44017155,70,PREMIER TRAVEL INN,HOTELS AND ACCOMMODATION
04-Apr-19,Financial Services - Children,PREMIER INN44521155,67,PREMIER TRAVEL INN,HOTELS AND ACCOMMODATION
04-Apr-19,Financial Services - Children,PREMIER INN44521440,67,PREMIER TRAVEL INN,HOTELS AND ACCOMMODATION
05-Apr-19,Financial Services - Children,WWW.TENPIN.CO.UK,24,"CLUBS-CNTRY,MBRSHIP(ATHLET,REC,SPRTS,PRIVATE GOLF",LEISURE ACTIVITIES
09-Apr-19,Financial Services - Children,TRAINLINE,107.1,PASSENGER RAILWAYS,TRAVEL
09-Apr-19,Financial Services - Children,PC WORLD ONLINE,299,ELECTRONIC SALES,GENERAL RETAIL AND WHOLESALE
09-Apr-19,Financial Services - Children,TRAVELODGE GB0000,80,TRAVELODGE,HOTELS AND ACCOMMODATION
09-Apr-19,Financial Services - Children,TRAVELODGE GB0000,73,TRAVELODGE,HOTELS AND ACCOMMODATION
09-Apr-19,Financial Services - Children,DWR CYMRU WELSH WATER,90.1,"UTLTS-ELCTRC, GAS, HEATING OIL, SANITARY, WATER",UTILITIES AND NON AUTOMOTIVE FUEL
09-Apr-19,Financial Services - Children,PREMIER INN44034360,86,PREMIER TRAVEL INN,HOTELS AND ACCOMMODATION
10-Apr-19,Financial Services - Children,Amazon.co.uk*MZ9224VO4,75,DIRECT MARKETING-OTHER DIRECT MARKETERS/NOT ELSEW.,MAIL ORDER / DIRECT SELLING
11-Apr-19,Financial Services - Children,THE RICHMOND HOTEL,282,"LODGING-HOTELS,MOTELS,RESORTS-NOT CLASSIFIED",HOTELS AND ACCOMMODATION
11-Apr-19,Financial Services - Children,ORCHARD FARM LTD,-208.8,CHILDREN'S AND INFANT'S WEAR STORES,GENERAL RETAIL AND WHOLESALE
11-Apr-19,Financial Services - Children,PREMIER INN44028705,80,PREMIER TRAVEL INN,HOTELS AND ACCOMMODATION
11-Apr-19,Financial Services - Children,PREMIER INN 44533960,152,PREMIER TRAVEL INN,HOTELS AND ACCOMMODATION
05-Apr-19,Community Safety,Hotel on Booking.com B.co,81,"LODGING-HOTELS,MOTELS,RESORTS-NOT CLASSIFIED",HOTELS AND ACCOMMODATION
08-Apr-19,Community Safety,TRECARN HOTEL,37.5,"LODGING-HOTELS,MOTELS,RESORTS-NOT CLASSIFIED",HOTELS AND ACCOMMODATION
25-Apr-19,Building Control,WWW.PSF.CO.UK,130.8,MEN'S AND WOMEN'S CLOTHING STORES,GENERAL RETAIL AND WHOLESALE
07-May-19,Early Education,WWW.KATHYBRODIE.COM,35,PROFESSIONAL SERVICES-NOT ELSEWHERE CLASSIFIED,PROFESSIONAL SERVICES
07-May-19,Early Education,JS ONLINE GROCERY,64.63,"GROCERY STORES, SUPERMARKETS",GENERAL RETAIL AND WHOLESALE
20-May-19,Early Education,JS ONLINE GROCERY,46.31,"GROCERY STORES, SUPERMARKETS",GENERAL RETAIL AND WHOLESALE
28-May-19,Early Education,JS ONLINE GROCERY,68.45,"GROCERY STORES, SUPERMARKETS",GENERAL RETAIL AND WHOLESALE
03-Jun-19,Early Education,JS ONLINE GROCERY,57.27,"GROCERY STORES, SUPERMARKETS",GENERAL RETAIL AND WHOLESALE
17-May-19,Planning Apps - Appeals & Enforcement,AMZNMktplace,112.29,MISCELLANEOUS AND SPECIALTY RETAIL STORES,GENERAL RETAIL AND WHOLESALE
09-May-19,Community Protection,MILK&MORE,7.62,DAIRY PRODUCTS STORES,CATERING AND CATERING SUPPLIES
09-May-19,Community Protection,PREMIER INN44031700,422,PREMIER TRAVEL INN,HOTELS AND ACCOMMODATION
10-May-19,Community Protection,PAYPAL *BOVEYTRACEY,28,"ORGANIZATIONS, MEMBERSHIP-NOT ELSEWHERE CLASSIFIED",CLUBS/ASSOCIATIONS/ORGANISATIONS
16-May-19,Community Protection,MILK&MORE,7.62,DAIRY PRODUCTS STORES,CATERING AND CATERING SUPPLIES
17-May-19,Community Protection,WWW.VKF-RENZEL.CO.,47.88,STATIONERY/OFFICE SUPPLIES/PRINTING AND  WRITING PAP.,OFFICE STATIONERY EQUIPMENT AND SUPPLIES
17-May-19,Community Protection,LIVERMEAD CLIFF HOTEL,39.6,"LODGING-HOTELS,MOTELS,RESORTS-NOT CLASSIFIED",HOTELS AND ACCOMMODATION
21-May-19,Community Protection,TU AT SAINSBURYS,50.15,"GROCERY STORES, SUPERMARKETS",GENERAL RETAIL AND WHOLESALE
21-May-19,Community Protection,AMZN MKTP UK AMAZON.CO.UK,-19.49,BOOK STORES,BOOKS AND PERIODICALS
22-May-19,Community Protection,WWW.COTSWOLDOUTDOOR.COM,75,MEN'S AND WOMEN'S CLOTHING STORES,GENERAL RETAIL AND WHOLESALE
22-May-19,Community Protection,SCREWFIX DIRECT,85.55,HOME SUPPLY WAREHOUSE STORES,GENERAL RETAIL AND WHOLESALE
22-May-19,Community Protection,AMZN Mktp UK*MN4IT0634,18.43,BOOK STORES,BOOKS AND PERIODICALS
23-May-19,Community Protection,PAYPAL *BREPSSERVIC,25.2,"CONTRACTORS,SPECIAL TRADE-NOT ELSEWHERE CLASSIFIED",BUILDING SERVICES
23-May-19,Community Protection,AMZNMktplace,47.8,MISCELLANEOUS AND SPECIALTY RETAIL STORES,GENERAL RETAIL AND WHOLESALE
23-May-19,Community Protection,PAYPAL *SANDIEMUIR,30,MISCELLANEOUS AND SPECIALTY RETAIL STORES,GENERAL RETAIL AND WHOLESALE
23-May-19,Community Protection,PAYPAL *TAYLORMADES,19.99,CHEMICALS/ALLIED PRODUCTS NOT ELSEWHERE CLASSIFIED,MISCELLANEOUS INDUSTRIAL/COMMERCIAL SUPPLIES
23-May-19,Community Protection,B&Q DIRECT,122,HOME SUPPLY WAREHOUSE STORES,GENERAL RETAIL AND WHOLESALE
23-May-19,Community Protection,MILK&MORE,7.62,DAIRY PRODUCTS STORES,CATERING AND CATERING SUPPLIES
24-May-19,Community Protection,GOVERNMENT EVENTS,386.58,"ASSOCIATIONS-CIVIC, SOCIAL, AND FRATERNAL",LEISURE ACTIVITIES
24-May-19,Community Protection,AMZN MKTP UK*MN40J3SE4 AM,105.8,BOOK STORES,BOOKS AND PERIODICALS
26-May-19,Community Protection,AMZNMktplace,23.98,MISCELLANEOUS AND SPECIALTY RETAIL STORES,GENERAL RETAIL AND WHOLESALE
26-May-19,Community Protection,AMZN Mktp UK*MN7KK7284,29.98,BOOK STORES,BOOKS AND PERIODICALS
24-May-19,Community Protection,CORNWALL COUNCIL,-30,GOVERNMENT SERVICES-NOT ELSEWHERE CLASSIFIED,STATUTORY BODIES
30-May-19,Community Protection,MILK&MORE,7.62,DAIRY PRODUCTS STORES,CATERING AND CATERING SUPPLIES
31-May-19,Community Protection,AMZNMktplace,81.97,MISCELLANEOUS AND SPECIALTY RETAIL STORES,GENERAL RETAIL AND WHOLESALE
31-May-19,Community Protection,FACEBK 5VDYJL2ET2,99.97,ADVERTISING SERVICES,PRINT AND ADVERTISING
04-Jun-19,Community Protection,TORBAY COUNCIL - WEB,11,GOVERNMENT SERVICES-NOT ELSEWHERE CLASSIFIED,STATUTORY BODIES
05-Jun-19,Community Protection,TORBAY COUNCIL - WEB,11,GOVERNMENT SERVICES-NOT ELSEWHERE CLASSIFIED,STATUTORY BODIES
05-Jun-19,Community Protection,WWW.GWR.COM,45.6,PASSENGER RAILWAYS,TRAVEL
07-May-19,Business Services,RICHARDSON HOTELS LIMITED,15,"LODGING-HOTELS,MOTELS,RESORTS-NOT CLASSIFIED",HOTELS AND ACCOMMODATION
08-May-19,Business Services,Trainline.com,115.53,PASSENGER RAILWAYS,TRAVEL
11-May-19,Business Services,WWW.RYA.ORG.UK,60,BUSINESS SERVICES-NOT ELSEWHERE CLASSIFIED,MISCELLANEOUS INDUSTRIAL/COMMERCIAL SUPPLIES
16-May-19,Business Services,GLENWOOD HOTEL,80,"LODGING-HOTELS,MOTELS,RESORTS-NOT CLASSIFIED",HOTELS AND ACCOMMODATION
16-May-19,Business Services,WWW.GWR.COM,124,PASSENGER RAILWAYS,TRAVEL
16-May-19,Business Services,EASYJET     000EX5W8NS,168.74,EASYJET,TRAVEL
16-May-19,Business Services,PREM INN HAMBURG Z,172.08,"LODGING-HOTELS,MOTELS,RESORTS-NOT CLASSIFIED",HOTELS AND ACCOMMODATION
20-May-19,Business Services,LUL TICKET MACHINE,4.9,PASSENGER RAILWAYS,TRAVEL
21-May-19,Business Services,PRINCESSHAY CAR PA,3.2,AUTOMOBILE PARKING LOTS AND GARAGES,TRAVEL
29-May-19,Business Services,TORBAY BUSINESS FORUM,12.5,"ORGANIZATIONS, MEMBERSHIP-NOT ELSEWHERE CLASSIFIED",CLUBS/ASSOCIATIONS/ORGANISATIONS
29-May-19,Business Services,EASYJET     000EX7XZ84,84.92,EASYJET,TRAVEL
02-Jun-19,Business Services,Trainline.com,216.72,PASSENGER RAILWAYS,TRAVEL
02-Jun-19,Business Services,EASYJET     EX7XZ84,59.96,EASYJET,TRAVEL
03-Jun-19,Business Services,BRISTOL AIRPORT LIMITE,43.11,AUTOMOBILE PARKING LOTS AND GARAGES,TRAVEL
04-Jun-19,Business Services,HELE CROSS S.STN,224.27,SERVICE STATIONS WITH OR WITHOUT ANCILLARY SERVICE,AUTOMOTIVE FUEL
05-Jun-19,Business Services,LUL TICKET MACHINE,9.8,PASSENGER RAILWAYS,TRAVEL
08-May-19,Legal Services,WWW.GOV.UK,10,PROFESSIONAL SERVICES-NOT ELSEWHERE CLASSIFIED,PROFESSIONAL SERVICES
09-May-19,Legal Services,JS ONLINE GROCERY,36.6,"GROCERY STORES, SUPERMARKETS",GENERAL RETAIL AND WHOLESALE
10-May-19,Legal Services,POST OFFICE COUNTER,6.6,POSTAL SERVICES-GOVERNMENT ONLY,MAIL AND COURIER SERVICES
13-May-19,Legal Services,POST OFFICE COUNTER,7.4,POSTAL SERVICES-GOVERNMENT ONLY,MAIL AND COURIER SERVICES
13-May-19,Legal Services,WWW.JCTLTD.CO.UK,40.4,BOOK STORES,BOOKS AND PERIODICALS
14-May-19,Legal Services,TESCO STORE 2920,66.1,"GROCERY STORES, SUPERMARKETS",GENERAL RETAIL AND WHOLESALE
14-May-19,Legal Services,CURRYS,189.95,ELECTRONIC SALES,GENERAL RETAIL AND WHOLESALE
15-May-19,Legal Services,AMZNMktplace,32.78,MISCELLANEOUS AND SPECIALTY RETAIL STORES,GENERAL RETAIL AND WHOLESALE
16-May-19,Legal Services,Amazon.co.uk*MN4WH8VS4,53.98,DIRECT MARKETING-OTHER DIRECT MARKETERS/NOT ELSEW.,MAIL ORDER / DIRECT SELLING
16-May-19,Legal Services,BRITANNIA,345,"LODGING-HOTELS,MOTELS,RESORTS-NOT CLASSIFIED",HOTELS AND ACCOMMODATION
21-May-19,Legal Services,POST OFFICE COUNTER,73.17,POSTAL SERVICES-GOVERNMENT ONLY,MAIL AND COURIER SERVICES
24-May-19,Legal Services,PVC FIX,18.96,"HAT CLEANING SHOPS, SHOE REPAIR SHOPS, SHOE SHINE",GENERAL RETAIL AND WHOLESALE
04-Jun-19,Legal Services,BLOOMSBURY PUBLISHING,552,BOOK STORES,BOOKS AND PERIODICALS
08-May-19,Financial Services inc Debtors Creditors and internal audit,AMZNMKTPLACE AMAZON.CO.UK,82.32,MISCELLANEOUS AND SPECIALTY RETAIL STORES,GENERAL RETAIL AND WHOLESALE
04-Jun-19,Financial Services inc Debtors Creditors and internal audit,WWW.GWR.COM,268,PASSENGER RAILWAYS,TRAVEL
14-May-19,"Financial Services inc Debtors Creditors and internal audit
 ",ARGOS RETAIL GROUP,38,DISCOUNT STORES,GENERAL RETAIL AND WHOLESALE
15-May-19,"Financial Services inc Debtors Creditors and internal audit
 ",AMZNMktplace,27.99,MISCELLANEOUS AND SPECIALTY RETAIL STORES,GENERAL RETAIL AND WHOLESALE
17-May-19,"Financial Services inc Debtors Creditors and internal audit
 ",TRAVELODGE GB0000,516,TRAVELODGE,HOTELS AND ACCOMMODATION
14-May-19,Local Transport Plan - strategic transport,AMZNMktplace,31.92,MISCELLANEOUS AND SPECIALTY RETAIL STORES,GENERAL RETAIL AND WHOLESALE
15-May-19,Local Transport Plan - strategic transport,AMZNMktplace,2.85,MISCELLANEOUS AND SPECIALTY RETAIL STORES,GENERAL RETAIL AND WHOLESALE
15-May-19,Local Transport Plan - strategic transport,WWW.DTAPUBLICATIONS.CO,920,"BOOKS,PERIODICALS AND NEWSPAPERS",BOOKS AND PERIODICALS
17-May-19,Local Transport Plan - strategic transport,AMZNMktplace,56.52,MISCELLANEOUS AND SPECIALTY RETAIL STORES,GENERAL RETAIL AND WHOLESALE
28-May-19,Local Transport Plan - strategic transport,JMLDIRECT/THESTORE,42.94,HOUSEHOLD APPLIANCE STORES,GENERAL RETAIL AND WHOLESALE
29-May-19,Local Transport Plan - strategic transport,Trainline.com,326.66,PASSENGER RAILWAYS,TRAVEL
16-May-19,ICT Training,WWW.GWR.COM,29.7,PASSENGER RAILWAYS,TRAVEL
16-May-19,ICT Training,WWW.GWR.COM,91,PASSENGER RAILWAYS,TRAVEL
16-May-19,ICT Training,AMOMA SARL,142.2,"LODGING-HOTELS,MOTELS,RESORTS-NOT CLASSIFIED",HOTELS AND ACCOMMODATION
21-May-19,ICT Training,WWW.GWR.COM,29.7,PASSENGER RAILWAYS,TRAVEL
23-May-19,ICT Training,WWW.GWR.COM,29.7,PASSENGER RAILWAYS,TRAVEL
14-May-19,TORBAY COUNCIL,CROSS COUNTRY TRAINS,133.8,PASSENGER RAILWAYS,TRAVEL
25-May-19,"Community & Customer Services
",1&1 INTERNET LIMITED,7.19,COMPUTER NETWORK/INFORMATION SERVICES,MISCELLANEOUS
03-Jun-19,"Community & Customer Services
",WWW.GWR.COM,230,PASSENGER RAILWAYS,TRAVEL
10-May-19,"Community & Customer Services
",ADOBE  ACROPRO SUBS,150.92,COMPUTER SOFTWARE STORES,COMPUTER EQUIPMENT & SERVICES
14-May-19,"Community & Customer Services
",TEAMVIEWER.COM*,"1,260.00","COMP PROGRAMING,DATA PRCSNG,INTGRTD SYS DSGN SRVS",COMPUTER EQUIPMENT & SERVICES
18-May-19,"Community & Customer Services
",DMARC ANALYZER,9.31,COMPUTER SOFTWARE STORES,COMPUTER EQUIPMENT & SERVICES
23-May-19,"Community & Customer Services
",APPLE ONLINE STORE GBP,249,ELECTRONIC SALES,GENERAL RETAIL AND WHOLESALE
24-May-19,"Community & Customer Services
",AMZNMktplace,24.48,MISCELLANEOUS AND SPECIALTY RETAIL STORES,GENERAL RETAIL AND WHOLESALE
28-May-19,"Community & Customer Services
",ZOHOCORP BV,435.43,COMPUTER SOFTWARE STORES,COMPUTER EQUIPMENT & SERVICES
28-May-19,"Community & Customer Services
",AMZ*Trusted-Goods,-24.48,MISCELLANEOUS AND SPECIALTY RETAIL STORES,GENERAL RETAIL AND WHOLESALE
30-May-19,"Community & Customer Services
",AMZN MKTP UK*MN3MU6IL4 AM,35.89,BOOK STORES,BOOKS AND PERIODICALS
03-Jun-19,"Community & Customer Services
",MSFT * E08008G3G3,4.5,"COMPUTERS, COMPUTER PERIPHERAL EQUIPMENT, SOFTWARE",COMPUTER EQUIPMENT & SERVICES
02-Jun-19,"Community & Customer Services
",MSFT *<E01008BDQM>,4.5,"COMPUTERS, COMPUTER PERIPHERAL EQUIPMENT, SOFTWARE",COMPUTER EQUIPMENT & SERVICES
04-Jun-19,"Community & Customer Services
",iZettle Merchant Servi,176.4,"COMPUTERS, COMPUTER PERIPHERAL EQUIPMENT, SOFTWARE",COMPUTER EQUIPMENT & SERVICES
08-May-19,Financial Services inc Debtors Creditors and internal audit,AMZNMktplace,51.99,MISCELLANEOUS AND SPECIALTY RETAIL STORES,GENERAL RETAIL AND WHOLESALE
08-May-19,Financial Services inc Debtors Creditors and internal audit,WWW.ARGOS.CO.UK,16.49,DISCOUNT STORES,GENERAL RETAIL AND WHOLESALE
08-May-19,Financial Services inc Debtors Creditors and internal audit,WWW.ARGOS.CO.UK,194.92,DISCOUNT STORES,GENERAL RETAIL AND WHOLESALE
08-May-19,Financial Services inc Debtors Creditors and internal audit,TORBAY COUNCIL - WEB,11,GOVERNMENT SERVICES-NOT ELSEWHERE CLASSIFIED,STATUTORY BODIES
08-May-19,Financial Services inc Debtors Creditors and internal audit,AMZNMktplace,299,MISCELLANEOUS AND SPECIALTY RETAIL STORES,GENERAL RETAIL AND WHOLESALE
08-May-19,Financial Services inc Debtors Creditors and internal audit,AMZN MKTP UK*MN0JN1AW4 AM,46.5,BOOK STORES,BOOKS AND PERIODICALS
09-May-19,Financial Services inc Debtors Creditors and internal audit,AMZNMktplace,266.59,MISCELLANEOUS AND SPECIALTY RETAIL STORES,GENERAL RETAIL AND WHOLESALE
09-May-19,Financial Services inc Debtors Creditors and internal audit,AMZNMktplace,9.95,MISCELLANEOUS AND SPECIALTY RETAIL STORES,GENERAL RETAIL AND WHOLESALE
09-May-19,Financial Services inc Debtors Creditors and internal audit,AMZNMktplace,78.99,MISCELLANEOUS AND SPECIALTY RETAIL STORES,GENERAL RETAIL AND WHOLESALE
09-May-19,Financial Services inc Debtors Creditors and internal audit,AMZNMktplace,169.99,MISCELLANEOUS AND SPECIALTY RETAIL STORES,GENERAL RETAIL AND WHOLESALE
09-May-19,Financial Services inc Debtors Creditors and internal audit,AMZNMKTPLACE AMAZON.CO.UK,49.9,MISCELLANEOUS AND SPECIALTY RETAIL STORES,GENERAL RETAIL AND WHOLESALE
09-May-19,Financial Services inc Debtors Creditors and internal audit,AMZNMKTPLACE AMAZON.CO.UK,299.98,MISCELLANEOUS AND SPECIALTY RETAIL STORES,GENERAL RETAIL AND WHOLESALE
09-May-19,Financial Services inc Debtors Creditors and internal audit,AMZN Mktp UK*MN1BZ5EG4,26.5,BOOK STORES,BOOKS AND PERIODICALS
09-May-19,Financial Services inc Debtors Creditors and internal audit,AMZN MKTP UK*MN0VB3EP4 AM,29.95,BOOK STORES,BOOKS AND PERIODICALS
08-May-19,Financial Services inc Debtors Creditors and internal audit,AMZN MKTP UK*MN3EZ0AT4 AM,10.98,BOOK STORES,BOOKS AND PERIODICALS
09-May-19,Financial Services inc Debtors Creditors and internal audit,AMZN MKTP UK*MN61H5EE4 AM,57.99,BOOK STORES,BOOKS AND PERIODICALS
09-May-19,Financial Services inc Debtors Creditors and internal audit,AMZN MKTP UK*MN5RE8EZ4 AM,16.99,BOOK STORES,BOOKS AND PERIODICALS
10-May-19,Financial Services inc Debtors Creditors and internal audit,AMZNMktplace,23.48,MISCELLANEOUS AND SPECIALTY RETAIL STORES,GENERAL RETAIL AND WHOLESALE
10-May-19,Financial Services inc Debtors Creditors and internal audit,AMZNMKTPLACE AMAZON.CO.UK,21.99,MISCELLANEOUS AND SPECIALTY RETAIL STORES,GENERAL RETAIL AND WHOLESALE
09-May-19,Financial Services inc Debtors Creditors and internal audit,PREMIER INN44533965,409,PREMIER TRAVEL INN,HOTELS AND ACCOMMODATION
11-May-19,Financial Services inc Debtors Creditors and internal audit,AMZNMktplace,164.99,MISCELLANEOUS AND SPECIALTY RETAIL STORES,GENERAL RETAIL AND WHOLESALE
11-May-19,Financial Services inc Debtors Creditors and internal audit,AMZNMktplace,43.42,MISCELLANEOUS AND SPECIALTY RETAIL STORES,GENERAL RETAIL AND WHOLESALE
13-May-19,Financial Services inc Debtors Creditors and internal audit,PREMIER INN 44531705,70,PREMIER TRAVEL INN,HOTELS AND ACCOMMODATION
14-May-19,Financial Services inc Debtors Creditors and internal audit,AMZN MKTP UK*MN4TR6X94 AM,109,BOOK STORES,BOOKS AND PERIODICALS
14-May-19,Financial Services inc Debtors Creditors and internal audit,AMZNMKTPLACE AMAZON.CO.UK,4.99,MISCELLANEOUS AND SPECIALTY RETAIL STORES,GENERAL RETAIL AND WHOLESALE
15-May-19,Financial Services inc Debtors Creditors and internal audit,AMZNMKTPLACE AMAZON.CO.UK,20.49,MISCELLANEOUS AND SPECIALTY RETAIL STORES,GENERAL RETAIL AND WHOLESALE
15-May-19,Financial Services inc Debtors Creditors and internal audit,TRAINLINE,50.9,PASSENGER RAILWAYS,TRAVEL
15-May-19,Financial Services inc Debtors Creditors and internal audit,TORBAY COUNCIL - WEB,75,GOVERNMENT SERVICES-NOT ELSEWHERE CLASSIFIED,STATUTORY BODIES
16-May-19,Financial Services inc Debtors Creditors and internal audit,AMZNMKTPLACE AMAZON.CO.UK,6.49,MISCELLANEOUS AND SPECIALTY RETAIL STORES,GENERAL RETAIL AND WHOLESALE
16-May-19,Financial Services inc Debtors Creditors and internal audit,SOUTH WEST WATER LTD,387.93,PROFESSIONAL SERVICES-NOT ELSEWHERE CLASSIFIED,PROFESSIONAL SERVICES
16-May-19,Financial Services inc Debtors Creditors and internal audit,WWW.BOOKING.GLL.ORG,30.5,RECREATION SERVICES (NOT ELSEWHERE CLASSIFIED),LEISURE ACTIVITIES
16-May-19,Financial Services inc Debtors Creditors and internal audit,TORBAY COUNCIL - WEB,11,GOVERNMENT SERVICES-NOT ELSEWHERE CLASSIFIED,STATUTORY BODIES
16-May-19,Financial Services inc Debtors Creditors and internal audit,PREMIER INN44019130,205,PREMIER TRAVEL INN,HOTELS AND ACCOMMODATION
20-May-19,Financial Services inc Debtors Creditors and internal audit,WWW.ARGOS.CO.UK,102.95,DISCOUNT STORES,GENERAL RETAIL AND WHOLESALE
21-May-19,Financial Services inc Debtors Creditors and internal audit,AMZNMktplace,47.99,MISCELLANEOUS AND SPECIALTY RETAIL STORES,GENERAL RETAIL AND WHOLESALE
25-Apr-19,Financial Services inc Debtors Creditors and internal audit,GEN REGISTER OFFICE,-7.5,GOVERNMENT SERVICES-NOT ELSEWHERE CLASSIFIED,STATUTORY BODIES
21-May-19,Financial Services inc Debtors Creditors and internal audit,BRITANNIA,59,"LODGING-HOTELS,MOTELS,RESORTS-NOT CLASSIFIED",HOTELS AND ACCOMMODATION
22-May-19,Financial Services inc Debtors Creditors and internal audit,AMZNMktplace,19.18,MISCELLANEOUS AND SPECIALTY RETAIL STORES,GENERAL RETAIL AND WHOLESALE
22-May-19,Financial Services inc Debtors Creditors and internal audit,ONE4ALL,100,DEPARTMENT STORES,GENERAL RETAIL AND WHOLESALE
22-May-19,Financial Services inc Debtors Creditors and internal audit,WWW.ARGOS.CO.UK,82.94,DISCOUNT STORES,GENERAL RETAIL AND WHOLESALE
22-May-19,Financial Services inc Debtors Creditors and internal audit,TORBAY COUNCIL - WEB,11,GOVERNMENT SERVICES-NOT ELSEWHERE CLASSIFIED,STATUTORY BODIES
22-May-19,Financial Services inc Debtors Creditors and internal audit,TORBAY COUNCIL - WEB,11,GOVERNMENT SERVICES-NOT ELSEWHERE CLASSIFIED,STATUTORY BODIES
22-May-19,Financial Services inc Debtors Creditors and internal audit,TORBAY COUNCIL - WEB,16.41,GOVERNMENT SERVICES-NOT ELSEWHERE CLASSIFIED,STATUTORY BODIES
22-May-19,Financial Services inc Debtors Creditors and internal audit,AMZNMktplace,7.98,MISCELLANEOUS AND SPECIALTY RETAIL STORES,GENERAL RETAIL AND WHOLESALE
22-May-19,Financial Services inc Debtors Creditors and internal audit,AMZN Mktp UK*MN5HF76L4,15.96,BOOK STORES,BOOKS AND PERIODICALS
23-May-19,Financial Services inc Debtors Creditors and internal audit,AMZNMktplace,3.09,MISCELLANEOUS AND SPECIALTY RETAIL STORES,GENERAL RETAIL AND WHOLESALE
23-May-19,Financial Services inc Debtors Creditors and internal audit,AMZNMktplace,3.95,MISCELLANEOUS AND SPECIALTY RETAIL STORES,GENERAL RETAIL AND WHOLESALE
23-May-19,Financial Services inc Debtors Creditors and internal audit,AMZN Mktp UK*MN0BT4SL4,24.99,BOOK STORES,BOOKS AND PERIODICALS
24-May-19,Financial Services inc Debtors Creditors and internal audit,AMZNMktplace,5.29,MISCELLANEOUS AND SPECIALTY RETAIL STORES,GENERAL RETAIL AND WHOLESALE
24-May-19,Financial Services inc Debtors Creditors and internal audit,WWW.IKEA.COM,419,"EQUIP, FURNITURE, HOME FURNSHNGS STRS (EXCPT APPL)",GENERAL RETAIL AND WHOLESALE
24-May-19,Financial Services inc Debtors Creditors and internal audit,ARGOS RETAIL GROUP,11.5,DISCOUNT STORES,GENERAL RETAIL AND WHOLESALE
26-May-19,Financial Services inc Debtors Creditors and internal audit,AMZNMktplace,106.69,MISCELLANEOUS AND SPECIALTY RETAIL STORES,GENERAL RETAIL AND WHOLESALE
26-May-19,Financial Services inc Debtors Creditors and internal audit,PREMIER INN44019130,-19,PREMIER TRAVEL INN,HOTELS AND ACCOMMODATION
27-May-19,Financial Services inc Debtors Creditors and internal audit,PREMIER INN44019130,-19,PREMIER TRAVEL INN,HOTELS AND ACCOMMODATION
28-May-19,Financial Services inc Debtors Creditors and internal audit,AMZNMktplace,1.25,MISCELLANEOUS AND SPECIALTY RETAIL STORES,GENERAL RETAIL AND WHOLESALE
29-May-19,Financial Services inc Debtors Creditors and internal audit,PREMIER INN44521720,73,PREMIER TRAVEL INN,HOTELS AND ACCOMMODATION
31-May-19,Financial Services inc Debtors Creditors and internal audit,PAYPAL *CRELLINGHAR,155.76,DENTAL/LAB/MED/OPHTHALMIC HOSP EQUIP AND  SUPPLIES,MEDICAL SUPPLIES AND SERVICES
31-May-19,Financial Services inc Debtors Creditors and internal audit,TRAVELODGE GB0000,92,TRAVELODGE,HOTELS AND ACCOMMODATION
01-Jun-19,Financial Services inc Debtors Creditors and internal audit,ARGOS RETAIL GROUP,-11.5,DISCOUNT STORES,GENERAL RETAIL AND WHOLESALE
07-May-19,Financial Services - Children,TRAINLINE,65.8,PASSENGER RAILWAYS,TRAVEL
16-May-19,Financial Services - Children,AUST FEDERAL POLICE,23.45,GOVERNMENT SERVICES-NOT ELSEWHERE CLASSIFIED,STATUTORY BODIES
15-May-19,TDA,WWW.JCTLTD.CO.UK,82.4,BOOK STORES,BOOKS AND PERIODICALS
15-May-19,TDA,WWW.GWR.COM,202.9,PASSENGER RAILWAYS,TRAVEL
15-May-19,TDA,HOTELS.COM158814918014,228.92,TRAVEL AGENCIES AND TOUR OPERATORS,TRAVEL
09-May-19,"Community & Customer Services
",FACEBK X9CW2L2VD2,9,ADVERTISING SERVICES,PRINT AND ADVERTISING
09-May-19,"Community & Customer Services
",WWW.DISCOUNTDISPLAYS.C,171.54,MISCELLANEOUS AND SPECIALTY RETAIL STORES,GENERAL RETAIL AND WHOLESALE
31-May-19,"Community & Customer Services
",BOOKER LIMITED PAIGNTON,24.52,CATERERS,CATERING AND CATERING SUPPLIES
07-May-19,Housing Options,CAVENDISH HOTEL,204.75,"LODGING-HOTELS,MOTELS,RESORTS-NOT CLASSIFIED",HOTELS AND ACCOMMODATION
07-May-19,Housing Options,CAVENDISH HOTEL,204.75,"LODGING-HOTELS,MOTELS,RESORTS-NOT CLASSIFIED",HOTELS AND ACCOMMODATION
07-May-19,Housing Options,TRAVELODGE GB0000,131,TRAVELODGE,HOTELS AND ACCOMMODATION
07-May-19,Housing Options,PAYPAL *BOOKING.COM,384.3,"LODGING-HOTELS,MOTELS,RESORTS-NOT CLASSIFIED",HOTELS AND ACCOMMODATION
08-May-19,Housing Options,WW.LADYSMILE.CO.UK,380.25,"LODGING-HOTELS,MOTELS,RESORTS-NOT CLASSIFIED",HOTELS AND ACCOMMODATION
08-May-19,Housing Options,TRAVELODGE GB0000,428,TRAVELODGE,HOTELS AND ACCOMMODATION
07-May-19,Housing Options,TRECARN HOTEL,105,"LODGING-HOTELS,MOTELS,RESORTS-NOT CLASSIFIED",HOTELS AND ACCOMMODATION
08-May-19,Housing Options,TRECARN HOTEL,234,"LODGING-HOTELS,MOTELS,RESORTS-NOT CLASSIFIED",HOTELS AND ACCOMMODATION
08-May-19,Housing Options,TRECARN HOTEL,27,"LODGING-HOTELS,MOTELS,RESORTS-NOT CLASSIFIED",HOTELS AND ACCOMMODATION
08-May-19,Housing Options,TRECARN HOTEL,244,"LODGING-HOTELS,MOTELS,RESORTS-NOT CLASSIFIED",HOTELS AND ACCOMMODATION
08-May-19,Housing Options,TRECARN HOTEL,232,"LODGING-HOTELS,MOTELS,RESORTS-NOT CLASSIFIED",HOTELS AND ACCOMMODATION
08-May-19,Housing Options,TRECARN HOTEL,244,"LODGING-HOTELS,MOTELS,RESORTS-NOT CLASSIFIED",HOTELS AND ACCOMMODATION
09-May-19,Housing Options,WW.LADYSMILE.CO.UK,577.67,"LODGING-HOTELS,MOTELS,RESORTS-NOT CLASSIFIED",HOTELS AND ACCOMMODATION
09-May-19,Housing Options,WW.LADYSMILE.CO.UK,638.67,"LODGING-HOTELS,MOTELS,RESORTS-NOT CLASSIFIED",HOTELS AND ACCOMMODATION
09-May-19,Housing Options,TRECARN HOTEL,241,"LODGING-HOTELS,MOTELS,RESORTS-NOT CLASSIFIED",HOTELS AND ACCOMMODATION
10-May-19,Housing Options,TRECARN HOTEL,289,"LODGING-HOTELS,MOTELS,RESORTS-NOT CLASSIFIED",HOTELS AND ACCOMMODATION
10-May-19,Housing Options,TRECARN HOTEL,289,"LODGING-HOTELS,MOTELS,RESORTS-NOT CLASSIFIED",HOTELS AND ACCOMMODATION
10-May-19,Housing Options,TRECARN HOTEL,254,"LODGING-HOTELS,MOTELS,RESORTS-NOT CLASSIFIED",HOTELS AND ACCOMMODATION
13-May-19,Housing Options,WWW.CHELSTONDENE.COM,109.53,"LODGING-HOTELS,MOTELS,RESORTS-NOT CLASSIFIED",HOTELS AND ACCOMMODATION
13-May-19,Housing Options,WWW.CHELSTONDENE.COM,255.56,"LODGING-HOTELS,MOTELS,RESORTS-NOT CLASSIFIED",HOTELS AND ACCOMMODATION
13-May-19,Housing Options,TRECARN HOTEL,74,"LODGING-HOTELS,MOTELS,RESORTS-NOT CLASSIFIED",HOTELS AND ACCOMMODATION
16-May-19,Housing Options,WW.LADYSMILE.CO.UK,559.37,"LODGING-HOTELS,MOTELS,RESORTS-NOT CLASSIFIED",HOTELS AND ACCOMMODATION
16-May-19,Housing Options,WW.LADYSMILE.CO.UK,914.39,"LODGING-HOTELS,MOTELS,RESORTS-NOT CLASSIFIED",HOTELS AND ACCOMMODATION
16-May-19,Housing Options,WW.LADYSMILE.CO.UK,559.37,"LODGING-HOTELS,MOTELS,RESORTS-NOT CLASSIFIED",HOTELS AND ACCOMMODATION
15-May-19,Housing Options,TRECARN HOTEL,249,"LODGING-HOTELS,MOTELS,RESORTS-NOT CLASSIFIED",HOTELS AND ACCOMMODATION
15-May-19,Housing Options,TRECARN HOTEL,88,"LODGING-HOTELS,MOTELS,RESORTS-NOT CLASSIFIED",HOTELS AND ACCOMMODATION
15-May-19,Housing Options,TRECARN HOTEL,34,"LODGING-HOTELS,MOTELS,RESORTS-NOT CLASSIFIED",HOTELS AND ACCOMMODATION
15-May-19,Housing Options,TRECARN HOTEL,269,"LODGING-HOTELS,MOTELS,RESORTS-NOT CLASSIFIED",HOTELS AND ACCOMMODATION
15-May-19,Housing Options,TRECARN HOTEL,249,"LODGING-HOTELS,MOTELS,RESORTS-NOT CLASSIFIED",HOTELS AND ACCOMMODATION
16-May-19,Housing Options,TRECARN HOTEL,138,"LODGING-HOTELS,MOTELS,RESORTS-NOT CLASSIFIED",HOTELS AND ACCOMMODATION
16-May-19,Housing Options,TRECARN HOTEL,37,"LODGING-HOTELS,MOTELS,RESORTS-NOT CLASSIFIED",HOTELS AND ACCOMMODATION
17-May-19,Housing Options,TRECARN HOTEL,252,"LODGING-HOTELS,MOTELS,RESORTS-NOT CLASSIFIED",HOTELS AND ACCOMMODATION
17-May-19,Housing Options,TRECARN HOTEL,252,"LODGING-HOTELS,MOTELS,RESORTS-NOT CLASSIFIED",HOTELS AND ACCOMMODATION
17-May-19,Housing Options,TRECARN HOTEL,252,"LODGING-HOTELS,MOTELS,RESORTS-NOT CLASSIFIED",HOTELS AND ACCOMMODATION
21-May-19,Housing Options,TRECARN HOTEL,296,"LODGING-HOTELS,MOTELS,RESORTS-NOT CLASSIFIED",HOTELS AND ACCOMMODATION
22-May-19,Housing Options,TRECARN HOTEL,259,"LODGING-HOTELS,MOTELS,RESORTS-NOT CLASSIFIED",HOTELS AND ACCOMMODATION
22-May-19,Housing Options,TRECARN HOTEL,259,"LODGING-HOTELS,MOTELS,RESORTS-NOT CLASSIFIED",HOTELS AND ACCOMMODATION
23-May-19,Housing Options,TRECARN HOTEL,42,"LODGING-HOTELS,MOTELS,RESORTS-NOT CLASSIFIED",HOTELS AND ACCOMMODATION
24-May-19,Housing Options,TRECARN HOTEL,259,"LODGING-HOTELS,MOTELS,RESORTS-NOT CLASSIFIED",HOTELS AND ACCOMMODATION
24-May-19,Housing Options,TRECARN HOTEL,259,"LODGING-HOTELS,MOTELS,RESORTS-NOT CLASSIFIED",HOTELS AND ACCOMMODATION
24-May-19,Housing Options,TRECARN HOTEL,294,"LODGING-HOTELS,MOTELS,RESORTS-NOT CLASSIFIED",HOTELS AND ACCOMMODATION
28-May-19,Housing Options,HOLIDAY PAYMENT VRUK,832,TRAVEL AGENCIES AND TOUR OPERATORS,TRAVEL
30-May-19,Housing Options,WW.LADYSMILE.CO.UK,462.21,"LODGING-HOTELS,MOTELS,RESORTS-NOT CLASSIFIED",HOTELS AND ACCOMMODATION
30-May-19,Housing Options,WW.LADYSMILE.CO.UK,462.21,"LODGING-HOTELS,MOTELS,RESORTS-NOT CLASSIFIED",HOTELS AND ACCOMMODATION
30-May-19,Housing Options,WW.LADYSMILE.CO.UK,462.21,"LODGING-HOTELS,MOTELS,RESORTS-NOT CLASSIFIED",HOTELS AND ACCOMMODATION
29-May-19,Housing Options,TRECARN HOTEL,259,"LODGING-HOTELS,MOTELS,RESORTS-NOT CLASSIFIED",HOTELS AND ACCOMMODATION
29-May-19,Housing Options,TRECARN HOTEL,259,"LODGING-HOTELS,MOTELS,RESORTS-NOT CLASSIFIED",HOTELS AND ACCOMMODATION
29-May-19,Housing Options,TRECARN HOTEL,259,"LODGING-HOTELS,MOTELS,RESORTS-NOT CLASSIFIED",HOTELS AND ACCOMMODATION
31-May-19,Housing Options,TRECARN HOTEL,111,"LODGING-HOTELS,MOTELS,RESORTS-NOT CLASSIFIED",HOTELS AND ACCOMMODATION
31-May-19,Housing Options,TRECARN HOTEL,259,"LODGING-HOTELS,MOTELS,RESORTS-NOT CLASSIFIED",HOTELS AND ACCOMMODATION
31-May-19,Housing Options,TRECARN HOTEL,259,"LODGING-HOTELS,MOTELS,RESORTS-NOT CLASSIFIED",HOTELS AND ACCOMMODATION
31-May-19,Housing Options,TRECARN HOTEL,336,"LODGING-HOTELS,MOTELS,RESORTS-NOT CLASSIFIED",HOTELS AND ACCOMMODATION
01-Jun-19,Housing Options,NATIONAL EXPRESS LIMITED,80.1,BUS LINES,TRAVEL
05-Jun-19,Housing Options,HOLIDAY PAYMENT VRUK,886,TRAVEL AGENCIES AND TOUR OPERATORS,TRAVEL
07-May-19,Financial Services - Children,TRAINLINE,105.5,PASSENGER RAILWAYS,TRAVEL
08-May-19,Financial Services - Children,STATIONERY OFFICE BOOK,16.74,BOOK STORES,BOOKS AND PERIODICALS
09-May-19,Financial Services - Children,TRAINLINE,164.45,PASSENGER RAILWAYS,TRAVEL
08-May-19,Financial Services - Children,PREMIER INN 44537135,91,PREMIER TRAVEL INN,HOTELS AND ACCOMMODATION
09-May-19,Financial Services - Children,PREMIER INN 44537640,69,PREMIER TRAVEL INN,HOTELS AND ACCOMMODATION
09-May-19,Financial Services - Children,WWW.ARGOS.CO.UK,198.99,DISCOUNT STORES,GENERAL RETAIL AND WHOLESALE
09-May-19,Financial Services - Children,WWW.ARGOS.CO.UK,168.94,DISCOUNT STORES,GENERAL RETAIL AND WHOLESALE
09-May-19,Financial Services - Children,HEALTHY WORKSTATIONS LTD,101.28,OFFICE PHOTOGRAPHIC PHOTOCOPY AND  MICROFILM EQUIPMT.,OFFICE STATIONERY EQUIPMENT AND SUPPLIES
10-May-19,Financial Services - Children,TRAINLINE,50.4,PASSENGER RAILWAYS,TRAVEL
10-May-19,Financial Services - Children,PREMIER INN44028680,116,PREMIER TRAVEL INN,HOTELS AND ACCOMMODATION
14-May-19,Financial Services - Children,HM PASSPORT OFFICE,49,GOVERNMENT SERVICES-NOT ELSEWHERE CLASSIFIED,STATUTORY BODIES
14-May-19,Financial Services - Children,HM PASSPORT OFFICE,49,GOVERNMENT SERVICES-NOT ELSEWHERE CLASSIFIED,STATUTORY BODIES
14-May-19,Financial Services - Children,HM PASSPORT OFFICE,49,GOVERNMENT SERVICES-NOT ELSEWHERE CLASSIFIED,STATUTORY BODIES
14-May-19,Financial Services - Children,PREMIER INN40012815,111,PREMIER TRAVEL INN,HOTELS AND ACCOMMODATION
14-May-19,Financial Services - Children,FLYBE.COM   JHIIIZ,131.84,"AIR CARRIERS, AIRLINES-NOT ELSEWHERE CLASSIFIED",TRAVEL
16-May-19,Financial Services - Children,TRAINLINE,143.2,PASSENGER RAILWAYS,TRAVEL
15-May-19,Financial Services - Children,PREMIER INN 44536535,107,"EATING PLACES, RESTAURANTS",RESTAURANTS AND BARS
17-May-19,Financial Services - Children,TRAINLINE,233.5,PASSENGER RAILWAYS,TRAVEL
17-May-19,Financial Services - Children,TRAVELODGE GB0000,64,TRAVELODGE,HOTELS AND ACCOMMODATION
20-May-19,Financial Services - Children,MERCHANT HOUSE,75,"LODGING-HOTELS,MOTELS,RESORTS-NOT CLASSIFIED",HOTELS AND ACCOMMODATION
20-May-19,Financial Services - Children,TRAINLINE,469.6,PASSENGER RAILWAYS,TRAVEL
21-May-19,Financial Services - Children,TRAINLINE,58.1,PASSENGER RAILWAYS,TRAVEL
21-May-19,Financial Services - Children,TRAINLINE,62.1,PASSENGER RAILWAYS,TRAVEL
20-May-19,Financial Services - Children,PREMIER INN44015395,78,PREMIER TRAVEL INN,HOTELS AND ACCOMMODATION
20-May-19,Financial Services - Children,PREMIER INN44521665,106,PREMIER TRAVEL INN,HOTELS AND ACCOMMODATION
21-May-19,Financial Services - Children,EVIIVO:THE ELMER,60,"LODGING-HOTELS,MOTELS,RESORTS-NOT CLASSIFIED",HOTELS AND ACCOMMODATION
21-May-19,Financial Services - Children,PREMIER INN44011700,89,PREMIER TRAVEL INN,HOTELS AND ACCOMMODATION
21-May-19,Financial Services - Children,PREMIER INN 44536685,114,PREMIER TRAVEL INN,HOTELS AND ACCOMMODATION
21-May-19,Financial Services - Children,FLYBE.COM   QEMMK6,95.13,"AIR CARRIERS, AIRLINES-NOT ELSEWHERE CLASSIFIED",TRAVEL
21-May-19,Financial Services - Children,FLYBE.COM   QJP3KR,84.53,"AIR CARRIERS, AIRLINES-NOT ELSEWHERE CLASSIFIED",TRAVEL
23-May-19,Financial Services - Children,WWW.ARGOS.CO.UK,52,DISCOUNT STORES,GENERAL RETAIL AND WHOLESALE
23-May-19,Financial Services - Children,WWW.ARGOS.CO.UK,110.94,DISCOUNT STORES,GENERAL RETAIL AND WHOLESALE
23-May-19,Financial Services - Children,WWW.ARGOS.CO.UK,-52,DISCOUNT STORES,GENERAL RETAIL AND WHOLESALE
23-May-19,Financial Services - Children,WWW.ARGOS.CO.UK,-110.94,DISCOUNT STORES,GENERAL RETAIL AND WHOLESALE
23-May-19,Financial Services - Children,PREMIER INN 44536035,85,PREMIER TRAVEL INN,HOTELS AND ACCOMMODATION
24-May-19,Financial Services - Children,BRIARFIELDS,190,"LODGING-HOTELS,MOTELS,RESORTS-NOT CLASSIFIED",HOTELS AND ACCOMMODATION
24-May-19,Financial Services - Children,PREMIER INN 44536535,98,"EATING PLACES, RESTAURANTS",RESTAURANTS AND BARS
24-May-19,Financial Services - Children,WWW.ARGOS.CO.UK,538.32,DISCOUNT STORES,GENERAL RETAIL AND WHOLESALE
24-May-19,Financial Services - Children,WWW.ARGOS.CO.UK,300.94,DISCOUNT STORES,GENERAL RETAIL AND WHOLESALE
24-May-19,Financial Services - Children,WWW.ARGOS.CO.UK,169.99,DISCOUNT STORES,GENERAL RETAIL AND WHOLESALE
28-May-19,Financial Services - Children,TRAINLINE,268.5,PASSENGER RAILWAYS,TRAVEL
28-May-19,Financial Services - Children,TRAVELODGE GB0000,69,TRAVELODGE,HOTELS AND ACCOMMODATION
28-May-19,Financial Services - Children,TRAVELODGE GB0000,142,TRAVELODGE,HOTELS AND ACCOMMODATION
29-May-19,Financial Services - Children,TORBAY COUNCIL - WEB,33,GOVERNMENT SERVICES-NOT ELSEWHERE CLASSIFIED,STATUTORY BODIES
30-May-19,Financial Services - Children,TRAINLINE,310.05,PASSENGER RAILWAYS,TRAVEL
30-May-19,Financial Services - Children,TRAVELODGE GB0000,64,TRAVELODGE,HOTELS AND ACCOMMODATION
30-May-19,Financial Services - Children,TRAVELODGE GB0000,56,TRAVELODGE,HOTELS AND ACCOMMODATION
30-May-19,Financial Services - Children,TRAVELODGE GB0000,-64,TRAVELODGE,HOTELS AND ACCOMMODATION
31-May-19,Financial Services - Children,TRAINLINE,50.9,PASSENGER RAILWAYS,TRAVEL
29-May-19,Financial Services - Children,FLYBE       NMFQID,237.13,"AIR CARRIERS, AIRLINES-NOT ELSEWHERE CLASSIFIED",TRAVEL
31-May-19,Financial Services - Children,TRAVELODGE GB0000,-21,TRAVELODGE,HOTELS AND ACCOMMODATION
03-Jun-19,Financial Services - Children,PRICE FIRST TAXIS LTD,18.8,LIMOUSINES AND TAXICABS,TRAVEL
03-Jun-19,Financial Services - Children,WWW.THEINNATWOODHALLSP,81,"LODGING-HOTELS,MOTELS,RESORTS-NOT CLASSIFIED",HOTELS AND ACCOMMODATION
03-Jun-19,Financial Services - Children,WWW.ARGOS.CO.UK,42.94,DISCOUNT STORES,GENERAL RETAIL AND WHOLESALE
03-Jun-19,Financial Services - Children,WWW.ARGOS.CO.UK,27.95,DISCOUNT STORES,GENERAL RETAIL AND WHOLESALE
03-Jun-19,Financial Services - Children,TRAINLINE,-39.4,PASSENGER RAILWAYS,TRAVEL
08-May-19,Community Safety,B.com 288645-JXML9 Smuggl,60,"LODGING-HOTELS,MOTELS,RESORTS-NOT CLASSIFIED",HOTELS AND ACCOMMODATION
09-May-19,Community Safety,B.COM 288645-20VPO SMUGGL,60,"LODGING-HOTELS,MOTELS,RESORTS-NOT CLASSIFIED",HOTELS AND ACCOMMODATION
31-May-19,Community Safety,BRITANNIA,167,"LODGING-HOTELS,MOTELS,RESORTS-NOT CLASSIFIED",HOTELS AND ACCOMMODATION
28-May-19,Building Control,WWW.PSF.CO.UK,56.34,MEN'S AND WOMEN'S CLOTHING STORES,GENERAL RETAIL AND WHOLESALE
28-May-19,Building Control,WWW.MILLETS.CO.UK,121.19,SPORTING GOODS STORES,GENERAL RETAIL AND WHOLESALE
11-Jun-19,Early Education,Trainline.com,51.26,PASSENGER RAILWAYS,TRAVEL
17-Jun-19,Early Education,JS ONLINE GROCERY,67.88,"GROCERY STORES, SUPERMARKETS",GENERAL RETAIL AND WHOLESALE
25-Jun-19,Early Education,CAPITA RECRUITMENT VETTIN,52.1,PROFESSIONAL SERVICES-NOT ELSEWHERE CLASSIFIED,PROFESSIONAL SERVICES
01-Jul-19,Early Education,JS ONLINE GROCERY,48.65,"GROCERY STORES, SUPERMARKETS",GENERAL RETAIL AND WHOLESALE
05-Jun-19,Community Protection,PREMIER INN 44536370,127,PREMIER TRAVEL INN,HOTELS AND ACCOMMODATION
06-Jun-19,Community Protection,MILK&MORE,7.62,DAIRY PRODUCTS STORES,CATERING AND CATERING SUPPLIES
11-Jun-19,Community Protection,DUNELM ONLINE ORDER,75,"DRAPERY, UPOLSTERY, AND WINDOW COVERINGS STORES",GENERAL RETAIL AND WHOLESALE
12-Jun-19,Community Protection,COLLECTIONS TRUST,55.6,"ORGANIZATIONS, CHARITABLE AND SOCIAL SERVICES",CLUBS/ASSOCIATIONS/ORGANISATIONS
12-Jun-19,Community Protection,AMZNMKTPLACE AMAZON.CO.UK,59.96,MISCELLANEOUS AND SPECIALTY RETAIL STORES,GENERAL RETAIL AND WHOLESALE
12-Jun-19,Community Protection,WWW.RESTEXPRESS.CO.UK,15.7,"GLASS, PAINT, WALLPAPER STORES",BUILDING MATERIALS
12-Jun-19,Community Protection,WWW.GWR.COM,111.8,PASSENGER RAILWAYS,TRAVEL
12-Jun-19,Community Protection,WWW.PRESERVATIONEQUIPM,122.71,"PUBLIC WAREHOUSING-FARM, REFRIG GOODS, HHG STORAGE",FREIGHT AND STORAGE
13-Jun-19,Community Protection,AMZNMktplace,85.98,MISCELLANEOUS AND SPECIALTY RETAIL STORES,GENERAL RETAIL AND WHOLESALE
13-Jun-19,Community Protection,TRAINLINE,53.8,PASSENGER RAILWAYS,TRAVEL
13-Jun-19,Community Protection,MILK&MORE,7.62,DAIRY PRODUCTS STORES,CATERING AND CATERING SUPPLIES
13-Jun-19,Community Protection,AMAZON.CO.UK*M67GO8TD4 AM,24.2,MISCELLANEOUS AND SPECIALTY RETAIL STORES,GENERAL RETAIL AND WHOLESALE
13-Jun-19,Community Protection,AMAZON.CO.UK*M60M02TJ4 AM,59.99,MISCELLANEOUS AND SPECIALTY RETAIL STORES,GENERAL RETAIL AND WHOLESALE
14-Jun-19,Community Protection,AMZNMKTPLACE AMAZON.CO.UK,6.04,MISCELLANEOUS AND SPECIALTY RETAIL STORES,GENERAL RETAIL AND WHOLESALE
20-Jun-19,Community Protection,MILK&MORE,7.62,DAIRY PRODUCTS STORES,CATERING AND CATERING SUPPLIES
24-Jun-19,Community Protection,TRAINLINE,-38.9,PASSENGER RAILWAYS,TRAVEL
25-Jun-19,Community Protection,TORBAY COUNCIL - WEB,11,GOVERNMENT SERVICES-NOT ELSEWHERE CLASSIFIED,STATUTORY BODIES
27-Jun-19,Community Protection,MILK&MORE,7.62,DAIRY PRODUCTS STORES,CATERING AND CATERING SUPPLIES
03-Jul-19,Community Protection,SHELTER,274,"ORGANIZATIONS, CHARITABLE AND SOCIAL SERVICES",CLUBS/ASSOCIATIONS/ORGANISATIONS
03-Jul-19,Community Protection,ESEDIRECT.CO.UK,31.26,"OFFICE, SCHOOL SUPPLY, AND STATIONERY STORES",OFFICE STATIONERY EQUIPMENT AND SUPPLIES
13-Jun-19,Business Services,BELFAST HARBOUR COMMIS,"1,056.00",GOVERNMENT SERVICES-NOT ELSEWHERE CLASSIFIED,STATUTORY BODIES
15-Jun-19,Business Services,WWW.DEFIBSHOP.CO.UK,64.8,"SCHOOLS, TRADE AND VOCATIONAL",TRAINING AND EDUCATIONAL
18-Jun-19,Business Services,TORBAY BUSINESS FORUM,12.5,"ORGANIZATIONS, MEMBERSHIP-NOT ELSEWHERE CLASSIFIED",CLUBS/ASSOCIATIONS/ORGANISATIONS
18-Jun-19,Business Services,WWW.NAUTINST.ORG,161,MISCELLANEOUS AND SPECIALTY RETAIL STORES,GENERAL RETAIL AND WHOLESALE
27-Jun-19,Business Services,TRAINLINE,132.82,PASSENGER RAILWAYS,TRAVEL
28-Jun-19,Business Services,WWW.THEBARCODEWAREHOUS,194.36,HOUSEHOLD APPLIANCE STORES,GENERAL RETAIL AND WHOLESALE
10-Jun-19,Legal Services,STATIONERY OFFICE BOOK,57.61,BOOK STORES,BOOKS AND PERIODICALS
11-Jun-19,Legal Services,BT CONFERENCING,626.33,TELECOM INCL PREPAID/RECURRING PHONE SVCS,TELECOMMUNICATION SERVICES
12-Jun-19,Legal Services,TRAINLINE,222.82,PASSENGER RAILWAYS,TRAVEL
19-Jun-19,Legal Services,POST OFFICE COUNTER,13.2,POSTAL SERVICES-GOVERNMENT ONLY,MAIL AND COURIER SERVICES
20-Jun-19,Legal Services,Amazon.co.uk*M63Y49G04,34.97,DIRECT MARKETING-OTHER DIRECT MARKETERS/NOT ELSEW.,MAIL ORDER / DIRECT SELLING
20-Jun-19,Legal Services,BRITANNIA,373,"LODGING-HOTELS,MOTELS,RESORTS-NOT CLASSIFIED",HOTELS AND ACCOMMODATION
20-Jun-19,Legal Services,BRITANNIA,373,"LODGING-HOTELS,MOTELS,RESORTS-NOT CLASSIFIED",HOTELS AND ACCOMMODATION
20-Jun-19,Legal Services,BRITANNIA,258,"LODGING-HOTELS,MOTELS,RESORTS-NOT CLASSIFIED",HOTELS AND ACCOMMODATION
21-Jun-19,Legal Services,SPORTSDIRECT.COM,35.98,SPORTING GOODS STORES,GENERAL RETAIL AND WHOLESALE
27-Jun-19,Legal Services,SPORTSDIRECT.COM,39.98,SPORTING GOODS STORES,GENERAL RETAIL AND WHOLESALE
27-Jun-19,Legal Services,APPLE.COM/UK,75,ELECTRONIC SALES,GENERAL RETAIL AND WHOLESALE
28-Jun-19,Legal Services,BRITANNIA,10,"LODGING-HOTELS,MOTELS,RESORTS-NOT CLASSIFIED",HOTELS AND ACCOMMODATION
02-Jul-19,Legal Services,BT CONFERENCING,373.24,TELECOM INCL PREPAID/RECURRING PHONE SVCS,TELECOMMUNICATION SERVICES
02-Jul-19,Legal Services,ROYAL BATH HOTEL,690,"LODGING-HOTELS,MOTELS,RESORTS-NOT CLASSIFIED",HOTELS AND ACCOMMODATION
03-Jul-19,Legal Services,WWW.GOV.UK,10,PROFESSIONAL SERVICES-NOT ELSEWHERE CLASSIFIED,PROFESSIONAL SERVICES
26-Jun-19,Planning Apps - Appeals & Enforcement,WILKO RETAIL LIMIT,5.25,HOUSEHOLD APPLIANCE STORES,GENERAL RETAIL AND WHOLESALE
21-Jun-19,Print & Post Room,P C F PRINT MANAGE,672,"COMP PROGRAMING,DATA PRCSNG,INTGRTD SYS DSGN SRVS",COMPUTER EQUIPMENT & SERVICES
21-Jun-19,Print & Post Room,WWW.EUROPE-SUBSTANCE.C,395.88,MISCELLANEOUS AND SPECIALTY RETAIL STORES,GENERAL RETAIL AND WHOLESALE
25-Jun-19,Print & Post Room,HALFORDS 0589,32.97,BICYCLE SHOPS-SALES AND SERVICE,GENERAL RETAIL AND WHOLESALE
29-May-19,Local Transport Plan - strategic transport,CREDIT ADJSUTMENT,-6.96,PASSENGER RAILWAYS,TRAVEL
02-Jul-19,Local Transport Plan - strategic transport,AMZNMktplace,19.98,MISCELLANEOUS AND SPECIALTY RETAIL STORES,GENERAL RETAIL AND WHOLESALE
10-Jun-19,TORBAY COUNCIL,TRAINLINE,51.26,PASSENGER RAILWAYS,TRAVEL
14-Jun-19,TORBAY COUNCIL,TRAINLINE,26.39,PASSENGER RAILWAYS,TRAVEL
26-Jun-19,TORBAY COUNCIL,CROSS COUNTRY TRAINS,195.75,PASSENGER RAILWAYS,TRAVEL
28-Jun-19,TORBAY COUNCIL,PREMIER INN44529750,288,PREMIER TRAVEL INN,HOTELS AND ACCOMMODATION
02-Jul-19,TORBAY COUNCIL,EB *THE CARE MANAGERS,78.45,BUSINESS SERVICES-NOT ELSEWHERE CLASSIFIED,MISCELLANEOUS INDUSTRIAL/COMMERCIAL SUPPLIES
22-Jun-19,"Community & Customer Services
",Dropbox QSWGF9LQHXDH,79,COMPUTER NETWORK/INFORMATION SERVICES,MISCELLANEOUS
25-Jun-19,"Community & Customer Services
",1&1 INTERNET LIMITED,31.16,COMPUTER NETWORK/INFORMATION SERVICES,MISCELLANEOUS
01-Jul-19,"Community & Customer Services
",PLN*PRICELINE.COM,169.86,PROFESSIONAL SERVICES-NOT ELSEWHERE CLASSIFIED,PROFESSIONAL SERVICES
04-Jul-19,"Community & Customer Services
",AMZNMktplace,72,MISCELLANEOUS AND SPECIALTY RETAIL STORES,GENERAL RETAIL AND WHOLESALE
13-Jun-19,"Community & Customer Services
",AMAZON.CO.UK*M65M37TD4 AM,38,MISCELLANEOUS AND SPECIALTY RETAIL STORES,GENERAL RETAIL AND WHOLESALE
18-Jun-19,"Community & Customer Services
",DMARC ANALYZER,9.46,COMPUTER SOFTWARE STORES,COMPUTER EQUIPMENT & SERVICES
19-Jun-19,"Community & Customer Services
",WWWSIGHTANDSOUND.CO.UK,"1,335.00","COMPUTERS, COMPUTER PERIPHERAL EQUIPMENT, SOFTWARE",COMPUTER EQUIPMENT & SERVICES
20-Jun-19,"Community & Customer Services
",SIGHT AND SOUND TECHNO,267,"COMPUTERS, COMPUTER PERIPHERAL EQUIPMENT, SOFTWARE",COMPUTER EQUIPMENT & SERVICES
22-Jun-19,"Community & Customer Services
",AMZNMktplace,42.99,MISCELLANEOUS AND SPECIALTY RETAIL STORES,GENERAL RETAIL AND WHOLESALE
23-Jun-19,"Community & Customer Services
",AMZNMktplace,35.89,MISCELLANEOUS AND SPECIALTY RETAIL STORES,GENERAL RETAIL AND WHOLESALE
26-Jun-19,"Community & Customer Services
",VIKING UK,584.4,STATIONERY/OFFICE SUPPLIES/PRINTING AND  WRITING PAP.,OFFICE STATIONERY EQUIPMENT AND SUPPLIES
03-Jul-19,"Community & Customer Services
",MSFT * E08008NP9X,4.5,"COMPUTERS, COMPUTER PERIPHERAL EQUIPMENT, SOFTWARE",COMPUTER EQUIPMENT & SERVICES
03-Jul-19,"Community & Customer Services
",MSFT *<E01008JY79>,4.5,"COMPUTERS, COMPUTER PERIPHERAL EQUIPMENT, SOFTWARE",COMPUTER EQUIPMENT & SERVICES
10-Jun-19,Financial Services inc Debtors Creditors and internal audit,TORBAY COUNCIL - WEB,11,GOVERNMENT SERVICES-NOT ELSEWHERE CLASSIFIED,STATUTORY BODIES
12-Jun-19,Financial Services inc Debtors Creditors and internal audit,www.kiddies-kingdom.com,109,MISCELLANEOUS AND SPECIALTY RETAIL STORES,GENERAL RETAIL AND WHOLESALE
12-Jun-19,Financial Services inc Debtors Creditors and internal audit,NCC CARD PAYMENT INTER,34,GOVERNMENT SERVICES-NOT ELSEWHERE CLASSIFIED,STATUTORY BODIES
12-Jun-19,Financial Services inc Debtors Creditors and internal audit,WWW.ARGOS.CO.UK,189.99,DISCOUNT STORES,GENERAL RETAIL AND WHOLESALE
12-Jun-19,Financial Services inc Debtors Creditors and internal audit,WWW.ARGOS.CO.UK,85.95,DISCOUNT STORES,GENERAL RETAIL AND WHOLESALE
18-Jun-19,Financial Services inc Debtors Creditors and internal audit,PREMIER INN44521255,69,PREMIER TRAVEL INN,HOTELS AND ACCOMMODATION
21-Jun-19,Financial Services inc Debtors Creditors and internal audit,GEN REGISTER OFFICE,14,GOVERNMENT SERVICES-NOT ELSEWHERE CLASSIFIED,STATUTORY BODIES
21-Jun-19,Financial Services inc Debtors Creditors and internal audit,WWW.WELCOME-BOOKING.CO,205,CAMPGROUNDS AND TRAILER PARKS,LEISURE ACTIVITIES
21-Jun-19,Financial Services inc Debtors Creditors and internal audit,PREMIER INN44015515,85,PREMIER TRAVEL INN,HOTELS AND ACCOMMODATION
21-Jun-19,Financial Services inc Debtors Creditors and internal audit,PREMIER INN 44537060,64,PREMIER TRAVEL INN,HOTELS AND ACCOMMODATION
24-Jun-19,Financial Services inc Debtors Creditors and internal audit,AMZNMktplace,17.48,MISCELLANEOUS AND SPECIALTY RETAIL STORES,GENERAL RETAIL AND WHOLESALE
21-Jun-19,Financial Services inc Debtors Creditors and internal audit,TVLICENSING.CO.UK,154.5,"CONSULTING, MANAGEMENT, AND PUBLIC RELATIONS SVCS",PROFESSIONAL SERVICES
24-Jun-19,Financial Services inc Debtors Creditors and internal audit,TRAINLINE,201.8,PASSENGER RAILWAYS,TRAVEL
24-Jun-19,Financial Services inc Debtors Creditors and internal audit,TRAVELODGE GB0000,49,TRAVELODGE,HOTELS AND ACCOMMODATION
24-Jun-19,Financial Services inc Debtors Creditors and internal audit,TRAVELODGE GB0000,49,TRAVELODGE,HOTELS AND ACCOMMODATION
24-Jun-19,Financial Services inc Debtors Creditors and internal audit,FLYBE.COM   VIJLCA,160.41,"AIR CARRIERS, AIRLINES-NOT ELSEWHERE CLASSIFIED",TRAVEL
24-Jun-19,Financial Services inc Debtors Creditors and internal audit,FLYBE.COM   VKHXYA,160.41,"AIR CARRIERS, AIRLINES-NOT ELSEWHERE CLASSIFIED",TRAVEL
25-Jun-19,Financial Services inc Debtors Creditors and internal audit,WWW.ARGOS.CO.UK,33.94,DISCOUNT STORES,GENERAL RETAIL AND WHOLESALE
25-Jun-19,Financial Services inc Debtors Creditors and internal audit,PREMIER INN 44531705,89,PREMIER TRAVEL INN,HOTELS AND ACCOMMODATION
26-Jun-19,Financial Services inc Debtors Creditors and internal audit,JEMELLA LTD,291.4,HOUSEHOLD APPLIANCE STORES,GENERAL RETAIL AND WHOLESALE
27-Jun-19,Financial Services inc Debtors Creditors and internal audit,GEN REGISTER OFFICE,38,GOVERNMENT SERVICES-NOT ELSEWHERE CLASSIFIED,STATUTORY BODIES
28-Jun-19,Financial Services inc Debtors Creditors and internal audit,PAYPAL *HINTONHOUSE,66.98,BOOK STORES,BOOKS AND PERIODICALS
28-Jun-19,Financial Services inc Debtors Creditors and internal audit,WWW.ARGOS.CO.UK,123.94,DISCOUNT STORES,GENERAL RETAIL AND WHOLESALE
01-Jul-19,Financial Services inc Debtors Creditors and internal audit,BOARS HEAD HOTEL,60,"LODGING-HOTELS,MOTELS,RESORTS-NOT CLASSIFIED",HOTELS AND ACCOMMODATION
01-Jul-19,Financial Services inc Debtors Creditors and internal audit,TORBAY COUNCIL - WEB,22,GOVERNMENT SERVICES-NOT ELSEWHERE CLASSIFIED,STATUTORY BODIES
02-Jul-19,Financial Services inc Debtors Creditors and internal audit,GEN REGISTER OFFICE,76,GOVERNMENT SERVICES-NOT ELSEWHERE CLASSIFIED,STATUTORY BODIES
02-Jul-19,Financial Services inc Debtors Creditors and internal audit,GEN REGISTER OFFICE,38,GOVERNMENT SERVICES-NOT ELSEWHERE CLASSIFIED,STATUTORY BODIES
02-Jul-19,Financial Services inc Debtors Creditors and internal audit,WWW.ARGOS.CO.UK,283.94,DISCOUNT STORES,GENERAL RETAIL AND WHOLESALE
02-Jul-19,Financial Services inc Debtors Creditors and internal audit,WWW.ARGOS.CO.UK,350.95,DISCOUNT STORES,GENERAL RETAIL AND WHOLESALE
02-Jul-19,Financial Services inc Debtors Creditors and internal audit,BCC REGISTER OFFIC,35.5,GOVERNMENT SERVICES-NOT ELSEWHERE CLASSIFIED,STATUTORY BODIES
02-Jul-19,Financial Services inc Debtors Creditors and internal audit,BRITANNIA,42,"LODGING-HOTELS,MOTELS,RESORTS-NOT CLASSIFIED",HOTELS AND ACCOMMODATION
02-Jul-19,Financial Services inc Debtors Creditors and internal audit,PREMIER INN44014075,208.98,PREMIER TRAVEL INN,HOTELS AND ACCOMMODATION
03-Jul-19,Financial Services inc Debtors Creditors and internal audit,TRAVELODGE GB0000,79,TRAVELODGE,HOTELS AND ACCOMMODATION
03-Jul-19,Financial Services inc Debtors Creditors and internal audit,Amazon.co.uk*M63KL1224,33.61,DIRECT MARKETING-OTHER DIRECT MARKETERS/NOT ELSEW.,MAIL ORDER / DIRECT SELLING
03-Jul-19,Financial Services inc Debtors Creditors and internal audit,TRAINLINE,-39.4,PASSENGER RAILWAYS,TRAVEL
03-Jul-19,Financial Services inc Debtors Creditors and internal audit,PREMIER INN44530660,75,PREMIER TRAVEL INN,HOTELS AND ACCOMMODATION
02-Jul-19,Financial Services inc Debtors Creditors and internal audit,GEN REGISTER OFFICE,-38,GOVERNMENT SERVICES-NOT ELSEWHERE CLASSIFIED,STATUTORY BODIES
06-Jun-19,Financial Services - Children,MY.MORRISONS.COM,20,"GROCERY STORES, SUPERMARKETS",GENERAL RETAIL AND WHOLESALE
06-Jun-19,Financial Services - Children,TRAVELODGE GB0000,129.2,TRAVELODGE,HOTELS AND ACCOMMODATION
14-Jun-19,Financial Services - Children,WWW.COVENTRY.GOV.UK,995.37,RECREATION SERVICES (NOT ELSEWHERE CLASSIFIED),LEISURE ACTIVITIES
20-Jun-19,Financial Services - Children,TRAINLINE,-54.3,PASSENGER RAILWAYS,TRAVEL
21-Jun-19,Financial Services - Children,TRAINLINE,167.5,PASSENGER RAILWAYS,TRAVEL
26-Jun-19,Financial Services - Children,PREMIER INN 44536035,74,PREMIER TRAVEL INN,HOTELS AND ACCOMMODATION
28-Jun-19,Financial Services - Children,PREMIER INN 44536535,97,"EATING PLACES, RESTAURANTS",RESTAURANTS AND BARS
28-Jun-19,Financial Services - Children,PREMIER INN 44536535,-97,"EATING PLACES, RESTAURANTS",RESTAURANTS AND BARS
19-Jun-19,TDA,RIBA SERVICES,205.9,BOOK STORES,BOOKS AND PERIODICALS
12-Jun-19,"Community & Customer Services
",WWW.GWR.COM,98.8,PASSENGER RAILWAYS,TRAVEL
12-Jun-19,"Community & Customer Services
",HALFORDS ON LINE,925,BICYCLE SHOPS-SALES AND SERVICE,GENERAL RETAIL AND WHOLESALE
05-Jun-19,Housing Options,TRECARN HOTEL,253,"LODGING-HOTELS,MOTELS,RESORTS-NOT CLASSIFIED",HOTELS AND ACCOMMODATION
05-Jun-19,Housing Options,TRECARN HOTEL,34,"LODGING-HOTELS,MOTELS,RESORTS-NOT CLASSIFIED",HOTELS AND ACCOMMODATION
05-Jun-19,Housing Options,TRECARN HOTEL,253,"LODGING-HOTELS,MOTELS,RESORTS-NOT CLASSIFIED",HOTELS AND ACCOMMODATION
07-Jun-19,Housing Options,TRECARN HOTEL,259,"LODGING-HOTELS,MOTELS,RESORTS-NOT CLASSIFIED",HOTELS AND ACCOMMODATION
08-Jun-19,Housing Options,TRECARN HOTEL,259,"LODGING-HOTELS,MOTELS,RESORTS-NOT CLASSIFIED",HOTELS AND ACCOMMODATION
07-Jun-19,Housing Options,TRECARN HOTEL,259,"LODGING-HOTELS,MOTELS,RESORTS-NOT CLASSIFIED",HOTELS AND ACCOMMODATION
08-Jun-19,Housing Options,TRECARN HOTEL,252,"LODGING-HOTELS,MOTELS,RESORTS-NOT CLASSIFIED",HOTELS AND ACCOMMODATION
11-Jun-19,Housing Options,WW.LADYSMILE.CO.UK,396.95,"LODGING-HOTELS,MOTELS,RESORTS-NOT CLASSIFIED",HOTELS AND ACCOMMODATION
11-Jun-19,Housing Options,WW.LADYSMILE.CO.UK,396.95,"LODGING-HOTELS,MOTELS,RESORTS-NOT CLASSIFIED",HOTELS AND ACCOMMODATION
12-Jun-19,Housing Options,TRECARN HOTEL,259,"LODGING-HOTELS,MOTELS,RESORTS-NOT CLASSIFIED",HOTELS AND ACCOMMODATION
12-Jun-19,Housing Options,TRECARN HOTEL,259,"LODGING-HOTELS,MOTELS,RESORTS-NOT CLASSIFIED",HOTELS AND ACCOMMODATION
14-Jun-19,Housing Options,TRECARN HOTEL,294,"LODGING-HOTELS,MOTELS,RESORTS-NOT CLASSIFIED",HOTELS AND ACCOMMODATION
14-Jun-19,Housing Options,TRECARN HOTEL,259,"LODGING-HOTELS,MOTELS,RESORTS-NOT CLASSIFIED",HOTELS AND ACCOMMODATION
14-Jun-19,Housing Options,TRECARN HOTEL,259,"LODGING-HOTELS,MOTELS,RESORTS-NOT CLASSIFIED",HOTELS AND ACCOMMODATION
14-Jun-19,Housing Options,TRECARN HOTEL,259,"LODGING-HOTELS,MOTELS,RESORTS-NOT CLASSIFIED",HOTELS AND ACCOMMODATION
15-Jun-19,Housing Options,TRECARN HOTEL,34,"LODGING-HOTELS,MOTELS,RESORTS-NOT CLASSIFIED",HOTELS AND ACCOMMODATION
18-Jun-19,Housing Options,TRECARN HOTEL,259,"LODGING-HOTELS,MOTELS,RESORTS-NOT CLASSIFIED",HOTELS AND ACCOMMODATION
19-Jun-19,Housing Options,TRECARN HOTEL,259,"LODGING-HOTELS,MOTELS,RESORTS-NOT CLASSIFIED",HOTELS AND ACCOMMODATION
19-Jun-19,Housing Options,TRECARN HOTEL,37,"LODGING-HOTELS,MOTELS,RESORTS-NOT CLASSIFIED",HOTELS AND ACCOMMODATION
19-Jun-19,Housing Options,TRECARN HOTEL,259,"LODGING-HOTELS,MOTELS,RESORTS-NOT CLASSIFIED",HOTELS AND ACCOMMODATION
20-Jun-19,Housing Options,TRECARN HOTEL,294,"LODGING-HOTELS,MOTELS,RESORTS-NOT CLASSIFIED",HOTELS AND ACCOMMODATION
20-Jun-19,Housing Options,TRECARN HOTEL,259,"LODGING-HOTELS,MOTELS,RESORTS-NOT CLASSIFIED",HOTELS AND ACCOMMODATION
20-Jun-19,Housing Options,TRECARN HOTEL,259,"LODGING-HOTELS,MOTELS,RESORTS-NOT CLASSIFIED",HOTELS AND ACCOMMODATION
21-Jun-19,Housing Options,TRECARN HOTEL,259,"LODGING-HOTELS,MOTELS,RESORTS-NOT CLASSIFIED",HOTELS AND ACCOMMODATION
21-Jun-19,Housing Options,TRECARN HOTEL,259,"LODGING-HOTELS,MOTELS,RESORTS-NOT CLASSIFIED",HOTELS AND ACCOMMODATION
25-Jun-19,Housing Options,TRAVELODGE GB0000,138,TRAVELODGE,HOTELS AND ACCOMMODATION
24-Jun-19,Housing Options,TRECARN HOTEL,259,"LODGING-HOTELS,MOTELS,RESORTS-NOT CLASSIFIED",HOTELS AND ACCOMMODATION
25-Jun-19,Housing Options,TRECARN HOTEL,68,"LODGING-HOTELS,MOTELS,RESORTS-NOT CLASSIFIED",HOTELS AND ACCOMMODATION
27-Jun-19,Housing Options,TRAVELODGE GB0000,96,TRAVELODGE,HOTELS AND ACCOMMODATION
26-Jun-19,Housing Options,TRECARN HOTEL,294,"LODGING-HOTELS,MOTELS,RESORTS-NOT CLASSIFIED",HOTELS AND ACCOMMODATION
26-Jun-19,Housing Options,TRECARN HOTEL,37,"LODGING-HOTELS,MOTELS,RESORTS-NOT CLASSIFIED",HOTELS AND ACCOMMODATION
26-Jun-19,Housing Options,TRECARN HOTEL,253,"LODGING-HOTELS,MOTELS,RESORTS-NOT CLASSIFIED",HOTELS AND ACCOMMODATION
26-Jun-19,Housing Options,TRECARN HOTEL,253,"LODGING-HOTELS,MOTELS,RESORTS-NOT CLASSIFIED",HOTELS AND ACCOMMODATION
26-Jun-19,Housing Options,TRECARN HOTEL,253,"LODGING-HOTELS,MOTELS,RESORTS-NOT CLASSIFIED",HOTELS AND ACCOMMODATION
27-Jun-19,Housing Options,TRECARN HOTEL,256,"LODGING-HOTELS,MOTELS,RESORTS-NOT CLASSIFIED",HOTELS AND ACCOMMODATION
27-Jun-19,Housing Options,TRECARN HOTEL,148,"LODGING-HOTELS,MOTELS,RESORTS-NOT CLASSIFIED",HOTELS AND ACCOMMODATION
28-Jun-19,Housing Options,TRECARN HOTEL,258,"LODGING-HOTELS,MOTELS,RESORTS-NOT CLASSIFIED",HOTELS AND ACCOMMODATION
28-Jun-19,Housing Options,TRECARN HOTEL,259,"LODGING-HOTELS,MOTELS,RESORTS-NOT CLASSIFIED",HOTELS AND ACCOMMODATION
28-Jun-19,Housing Options,TRECARN HOTEL,294,"LODGING-HOTELS,MOTELS,RESORTS-NOT CLASSIFIED",HOTELS AND ACCOMMODATION
28-Jun-19,Housing Options,TRECARN HOTEL,259,"LODGING-HOTELS,MOTELS,RESORTS-NOT CLASSIFIED",HOTELS AND ACCOMMODATION
27-Jun-19,Housing Options,TRECARN HOTEL,-210,"LODGING-HOTELS,MOTELS,RESORTS-NOT CLASSIFIED",HOTELS AND ACCOMMODATION
01-Jul-19,Housing Options,TRECARN HOTEL,142,"LODGING-HOTELS,MOTELS,RESORTS-NOT CLASSIFIED",HOTELS AND ACCOMMODATION
01-Jul-19,Housing Options,TRECARN HOTEL,261,"LODGING-HOTELS,MOTELS,RESORTS-NOT CLASSIFIED",HOTELS AND ACCOMMODATION
02-Jul-19,Housing Options,TRECARN HOTEL,263,"LODGING-HOTELS,MOTELS,RESORTS-NOT CLASSIFIED",HOTELS AND ACCOMMODATION
02-Jul-19,Housing Options,TRECARN HOTEL,263,"LODGING-HOTELS,MOTELS,RESORTS-NOT CLASSIFIED",HOTELS AND ACCOMMODATION
02-Jul-19,Housing Options,TRECARN HOTEL,189,"LODGING-HOTELS,MOTELS,RESORTS-NOT CLASSIFIED",HOTELS AND ACCOMMODATION
03-Jul-19,Housing Options,TRECARN HOTEL,269,"LODGING-HOTELS,MOTELS,RESORTS-NOT CLASSIFIED",HOTELS AND ACCOMMODATION
05-Jun-19,Financial Services - Children,FLYBE.COM   V2R3UG,182.13,"AIR CARRIERS, AIRLINES-NOT ELSEWHERE CLASSIFIED",TRAVEL
06-Jun-19,Financial Services - Children,WWW.ARGOS.CO.UK,37.95,DISCOUNT STORES,GENERAL RETAIL AND WHOLESALE
06-Jun-19,Financial Services - Children,TVLICENSING.CO.UK,154.5,"CONSULTING, MANAGEMENT, AND PUBLIC RELATIONS SVCS",PROFESSIONAL SERVICES
07-Jun-19,Financial Services - Children,TRAVELODGE GB0000,49,TRAVELODGE,HOTELS AND ACCOMMODATION
07-Jun-19,Financial Services - Children,PREMIER INN44027510,278,PREMIER TRAVEL INN,HOTELS AND ACCOMMODATION
07-Jun-19,Financial Services - Children,WWW.ARGOS.CO.UK,78.95,DISCOUNT STORES,GENERAL RETAIL AND WHOLESALE
12-Jun-19,Financial Services - Children,HOTEL IBIS,408,HOTEL IBIS,HOTELS AND ACCOMMODATION
12-Jun-19,Financial Services - Children,PREMIER INN44017005,141,PREMIER TRAVEL INN,HOTELS AND ACCOMMODATION
12-Jun-19,Financial Services - Children,PREMIER INN44514505,224,PREMIER TRAVEL INN,HOTELS AND ACCOMMODATION
12-Jun-19,Financial Services - Children,PREMIER INN44514505,157,PREMIER TRAVEL INN,HOTELS AND ACCOMMODATION
13-Jun-19,Financial Services - Children,KIDZ KARGO LIMITED,235,MISCELLANEOUS AND SPECIALTY RETAIL STORES,GENERAL RETAIL AND WHOLESALE
12-Jun-19,Financial Services - Children,FLYBE.COM   NGCMVL,182.13,"AIR CARRIERS, AIRLINES-NOT ELSEWHERE CLASSIFIED",TRAVEL
13-Jun-19,Financial Services - Children,PREMIER INN 44531705,77,PREMIER TRAVEL INN,HOTELS AND ACCOMMODATION
13-Jun-19,Financial Services - Children,FLYBE.COM   QCOHQN,205.13,"AIR CARRIERS, AIRLINES-NOT ELSEWHERE CLASSIFIED",TRAVEL
14-Jun-19,Financial Services - Children,ARGOS RETAIL GROUP,59.99,DISCOUNT STORES,GENERAL RETAIL AND WHOLESALE
14-Jun-19,Financial Services - Children,PREMIER INN44010670,68,PREMIER TRAVEL INN,HOTELS AND ACCOMMODATION
14-Jun-19,Financial Services - Children,WWW.ARGOS.CO.UK,102.95,DISCOUNT STORES,GENERAL RETAIL AND WHOLESALE
17-Jun-19,Financial Services - Children,TRAINLINE,147,PASSENGER RAILWAYS,TRAVEL
17-Jun-19,Financial Services - Children,TRAINLINE,130.6,PASSENGER RAILWAYS,TRAVEL
18-Jun-19,Financial Services - Children,HM PASSPORT OFFICE,49,GOVERNMENT SERVICES-NOT ELSEWHERE CLASSIFIED,STATUTORY BODIES
18-Jun-19,Financial Services - Children,HM PASSPORT OFFICE,49,GOVERNMENT SERVICES-NOT ELSEWHERE CLASSIFIED,STATUTORY BODIES
18-Jun-19,Financial Services - Children,TRAINLINE,163.4,PASSENGER RAILWAYS,TRAVEL
17-Jun-19,Financial Services - Children,PREMIER INN 44536685,111,PREMIER TRAVEL INN,HOTELS AND ACCOMMODATION
17-Jun-19,Financial Services - Children,PREMIER INN 44536685,102,PREMIER TRAVEL INN,HOTELS AND ACCOMMODATION
18-Jun-19,Financial Services - Children,CURRYS ONLINE,449,ELECTRONIC SALES,GENERAL RETAIL AND WHOLESALE
18-Jun-19,Financial Services - Children,WWW.ARGOS.CO.UK,115.94,DISCOUNT STORES,GENERAL RETAIL AND WHOLESALE
18-Jun-19,Financial Services - Children,WWW.ARGOS.CO.UK,319.92,DISCOUNT STORES,GENERAL RETAIL AND WHOLESALE
18-Jun-19,Financial Services - Children,WORCESTERSHIRE COU,22,GOVERNMENT SERVICES-NOT ELSEWHERE CLASSIFIED,STATUTORY BODIES
18-Jun-19,Financial Services - Children,BCC REGISTER OFFIC,35.5,GOVERNMENT SERVICES-NOT ELSEWHERE CLASSIFIED,STATUTORY BODIES
18-Jun-19,Financial Services - Children,EB *SUPPORTING A YOUNG,80,BUSINESS SERVICES-NOT ELSEWHERE CLASSIFIED,MISCELLANEOUS INDUSTRIAL/COMMERCIAL SUPPLIES
19-Jun-19,Financial Services - Children,BOING RAPID SECURE LTD,204,BUSINESS SERVICES-NOT ELSEWHERE CLASSIFIED,MISCELLANEOUS INDUSTRIAL/COMMERCIAL SUPPLIES
19-Jun-19,Financial Services - Children,TORBAY COUNCIL - WEB,11,GOVERNMENT SERVICES-NOT ELSEWHERE CLASSIFIED,STATUTORY BODIES
20-Jun-19,Financial Services - Children,TRAINLINE,31.85,PASSENGER RAILWAYS,TRAVEL
20-Jun-19,Financial Services - Children,TRAINLINE,536.9,PASSENGER RAILWAYS,TRAVEL
19-Jun-19,Financial Services - Children,PREMIER INN44013440,81,PREMIER TRAVEL INN,HOTELS AND ACCOMMODATION
19-Jun-19,Financial Services - Children,PREMIER INN 44529775,217,PREMIER TRAVEL INN,HOTELS AND ACCOMMODATION
19-Jun-19,Financial Services - Children,PREMIER INN 44536685,218,PREMIER TRAVEL INN,HOTELS AND ACCOMMODATION
20-Jun-19,Financial Services - Children,YARN MARKET HOTEL,216,"LODGING-HOTELS,MOTELS,RESORTS-NOT CLASSIFIED",HOTELS AND ACCOMMODATION
21-Jun-19,Financial Services - Children,TRAINLINE,83.9,PASSENGER RAILWAYS,TRAVEL
21-Jun-19,Financial Services - Children,HM PASSPORT OFFICE,75.5,GOVERNMENT SERVICES-NOT ELSEWHERE CLASSIFIED,STATUTORY BODIES
21-Jun-19,Financial Services - Children,HM PASSPORT OFFICE,49,GOVERNMENT SERVICES-NOT ELSEWHERE CLASSIFIED,STATUTORY BODIES
21-Jun-19,Financial Services - Children,HM PASSPORT OFFICE,49,GOVERNMENT SERVICES-NOT ELSEWHERE CLASSIFIED,STATUTORY BODIES
20-Jun-19,Financial Services - Children,WWW.OLDHAM.GOV.UK,11,GOVERNMENT SERVICES-NOT ELSEWHERE CLASSIFIED,STATUTORY BODIES
21-Jun-19,Financial Services - Children,GEN REGISTER OFFICE,38,GOVERNMENT SERVICES-NOT ELSEWHERE CLASSIFIED,STATUTORY BODIES
21-Jun-19,Financial Services - Children,GEN REGISTER OFFICE,14,GOVERNMENT SERVICES-NOT ELSEWHERE CLASSIFIED,STATUTORY BODIES
20-Jun-19,Financial Services - Children,FLYBE.COM   K6ZN7H,237.13,"AIR CARRIERS, AIRLINES-NOT ELSEWHERE CLASSIFIED",TRAVEL
21-Jun-19,Financial Services - Children,PREMIER INN44013285,135,PREMIER TRAVEL INN,HOTELS AND ACCOMMODATION
21-Jun-19,Financial Services - Children,PREMIER INN44015515,124,PREMIER TRAVEL INN,HOTELS AND ACCOMMODATION
21-Jun-19,Financial Services - Children,PREMIER INN44015515,118,PREMIER TRAVEL INN,HOTELS AND ACCOMMODATION
21-Jun-19,Financial Services - Children,PREMIER INN44015515,110,PREMIER TRAVEL INN,HOTELS AND ACCOMMODATION
21-Jun-19,Financial Services - Children,PREMIER INN44015515,103,PREMIER TRAVEL INN,HOTELS AND ACCOMMODATION
21-Jun-19,Financial Services - Children,PREMIER INN44015515,135,PREMIER TRAVEL INN,HOTELS AND ACCOMMODATION
21-Jun-19,Financial Services - Children,WWW.ARGOS.CO.UK,191.91,DISCOUNT STORES,GENERAL RETAIL AND WHOLESALE
21-Jun-19,Financial Services - Children,WWW.ARGOS.CO.UK,22.98,DISCOUNT STORES,GENERAL RETAIL AND WHOLESALE
24-Jun-19,Financial Services - Children,TRAINLINE,164.45,PASSENGER RAILWAYS,TRAVEL
24-Jun-19,Financial Services - Children,TRAVELODGE GB0000,58.99,TRAVELODGE,HOTELS AND ACCOMMODATION
24-Jun-19,Financial Services - Children,WORCESTERSHIRE COU,-22,GOVERNMENT SERVICES-NOT ELSEWHERE CLASSIFIED,STATUTORY BODIES
25-Jun-19,Financial Services - Children,CURRYS ONLINE,239,ELECTRONIC SALES,GENERAL RETAIL AND WHOLESALE
24-Jun-19,Financial Services - Children,FLYBE       WDSS3I,207.41,"AIR CARRIERS, AIRLINES-NOT ELSEWHERE CLASSIFIED",TRAVEL
25-Jun-19,Financial Services - Children,TRAVELODGE GB0000,126,TRAVELODGE,HOTELS AND ACCOMMODATION
26-Jun-19,Financial Services - Children,PREMIER INN44010470,94,PREMIER TRAVEL INN,HOTELS AND ACCOMMODATION
27-Jun-19,Financial Services - Children,NATIONAL EXPRESS LIMITED,102,BUS LINES,TRAVEL
27-Jun-19,Financial Services - Children,PREMIER INN44010670,99,PREMIER TRAVEL INN,HOTELS AND ACCOMMODATION
27-Jun-19,Financial Services - Children,FLYBE.COM   QIQGRA,102.6,"AIR CARRIERS, AIRLINES-NOT ELSEWHERE CLASSIFIED",TRAVEL
28-Jun-19,Financial Services - Children,PREMIER INN44521655,159,PREMIER TRAVEL INN,HOTELS AND ACCOMMODATION
28-Jun-19,Financial Services - Children,FLYBE.COM   TWKYIU,113.13,"AIR CARRIERS, AIRLINES-NOT ELSEWHERE CLASSIFIED",TRAVEL
02-Jul-19,Financial Services - Children,PREMIER INN44523630,71,PREMIER TRAVEL INN,HOTELS AND ACCOMMODATION
02-Jul-19,Financial Services - Children,PREMIER INN 44537060,88,PREMIER TRAVEL INN,HOTELS AND ACCOMMODATION
02-Jul-19,Financial Services - Children,FLYBE.COM   RVI4OI,113.13,"AIR CARRIERS, AIRLINES-NOT ELSEWHERE CLASSIFIED",TRAVEL
04-Jul-19,Financial Services - Children,TRAINLINE,311.3,PASSENGER RAILWAYS,TRAVEL
04-Jul-19,Financial Services - Children,HM PASSPORT OFFICE,49,GOVERNMENT SERVICES-NOT ELSEWHERE CLASSIFIED,STATUTORY BODIES
04-Jul-19,Financial Services - Children,TORBAY COUNCIL - WEB,11,GOVERNMENT SERVICES-NOT ELSEWHERE CLASSIFIED,STATUTORY BODIES
04-Jul-19,Financial Services - Children,YARN MARKET HOTEL,216,"LODGING-HOTELS,MOTELS,RESORTS-NOT CLASSIFIED",HOTELS AND ACCOMMODATION
